Period,Quarter,"Recipient Name",City,Province,Country,Title,Language,Genre,Date,"Final Value","Original Value",Type,Purpose,Comments
2015-2016,P1,"Entertainment One Films Canada Inc.",Toronto,Ontario,Canada,"Maps to the Stars",English,"Drama (Film)",2015-04-02,762794.00,762794.00,"Recoupable Advance","Marketing Program",
2015-2016,P1,"Serendipity Point Films Inc.",Toronto,Ontario,Canada,"Diamond Tongues",English,Comedy,2015-04-02,5000.00,5000.00,Contribution,"International Marketing Program",
2015-2016,P1,"Small Shack Productions Inc.","St. John's",Newfoundland/Labrador,Canada,Maudie,English,"Drama (Film)",2015-04-08,0.00,150000.00,"Recoupable Advance","Production Program","Amended contract signed  09-FEB-15"
2015-2016,P1,"Films S�ville Inc. (Les) / Seville Pictures Inc.",Montreal,Quebec,Canada,"Elephant Song (The)",English,"Drama (Film)",2015-04-08,253722.00,253722.00,"Recoupable Advance","Marketing Program",
2015-2016,P1,"Perfect Pictures Inc.",Calgary,Alberta,Canada,"Ally Was Screaming",English,"Drama (Film)",2015-04-10,1000.00,1000.00,Contribution,"International Marketing Program",
2015-2016,P1,"Fake-A-Baby Productions Inc.",Vancouver,"British Columbia",Canada,Preggoland,English,Comedy,2015-04-10,1184.00,1184.00,Contribution,"International Marketing Program",
2015-2016,P1,"L'Oeil vif (faisant affaires sous Les films du 3 mars)",Montreal,Quebec,Canada,"Profil Amina (Le)",French,Documentary,2015-04-13,35000.00,35000.00,"Recoupable Advance","Marketing Program",
2015-2016,P1,"Filmoption International inc.",Westmount,Quebec,Canada,"SCAPHANDRIER (LE)",French,Thriller,2015-04-13,60000.00,60000.00,"Recoupable Advance","Marketing Program",
2015-2016,P1,"Devonshire Productions Inc.",Toronto,Ontario,Canada,Surfacing,English,"Drama (Film)",2015-04-14,1459.00,1459.00,Contribution,"International Marketing Program",
2015-2016,P1,"Mongrel Media Inc.",Toronto,Ontario,Canada,Watermark,English,Documentary,2015-04-15,158992.00,206691.00,"Recoupable Advance","Marketing Program","Amended contract signed  29-APR-14"
2015-2016,P1,"Mongrel Media Inc.",Toronto,Ontario,Canada,"The Forbidden Room",English,"Drama (Film)",2015-04-15,10000.00,10000.00,Contribution,"International Marketing Program",
2015-2016,P1,"Crawlspace Films, Inc.","St. John's",Newfoundland/Labrador,Canada,"Cast No Shadow",English,"Drama (Film)",2015-04-16,25000.00,25000.00,"Recoupable Advance","Marketing Program",
2015-2016,P1,"Item 7 Inc.",Montreal,Quebec,Canada,"Eye on Juliet (aka Virgin 2.0)",English,"Drama (Film)",2015-04-17,150000.00,150000.00,"Recoupable Advance","Production Program",
2015-2016,P1,"Birdland Films Inc.",Toronto,Ontario,Canada,Birdland,English,Mystery/Crime/Police,2015-04-29,330683.00,330683.00,Investment,"Production Program",
2015-2016,P1,"Productions InformAction Inc.",Montreal,Quebec,Canada,"OGM : V�rit�s et mensonges",French,Documentary,2015-04-30,0.00,0.00,"Recoupable Advance",Mini-treaties,
2015-2016,P1,"T�l�fiction Distribution et Marketing Inc.",Montreal,Quebec,Canada,"Journal d'Aur�lie Laflamme, Les pieds sur terre (Le)",French,Comedy,2015-04-30,400500.00,400500.00,"Recoupable Advance","Marketing Program",
2015-2016,P1,"9318-6823 Qu�bec Inc",Montreal,Quebec,Canada,"LE COEUR R�GULIER",French,"Drama (Film)",2015-04-30,50000.00,50000.00,"Investment, Recoupable Advance",Mini-treaties,
2015-2016,P1,"9318-6823 Qu�bec Inc",Montreal,Quebec,Canada,"LE COEUR R�GULIER",French,"Drama (Film)",2015-04-30,190000.00,190000.00,"Investment, Recoupable Advance","Production Program",
2015-2016,P1,"9317-3946 Qu�bec inc.",Montreal,Quebec,Canada,"Secret d'hiver",French,"Drama (Film)",2015-05-01,80000.00,80000.00,"Recoupable Advance",Mini-treaties,
2015-2016,P1,"Pacific Northwest Pictures Inc.",Vancouver,"British Columbia",Canada,"October Gale",English,Thriller,2015-05-06,148091.00,148091.00,"Recoupable Advance","Marketing Program",
2015-2016,P1,"Union Pictures of Canada Inc.",Toronto,Ontario,Canada,"Big Muddy",English,Thriller,2015-05-06,37909.00,37909.00,"Recoupable Advance","Marketing Program",
2015-2016,P1,"Film Forge Productions Inc.",Toronto,Ontario,Canada,"Sleeping Giant",English,"Drama (Film)",2015-05-06,25000.00,25000.00,Contribution,"International Marketing Program",
2015-2016,P1,"Lyla Films Inc.",Montreal,Quebec,Canada,"Portfolio 2015-2016 Lyla Films Inc.",English,"Drama (Film)",2015-05-08,100000.00,100000.00,"Recoupable Advance","Development Program",
2015-2016,P1,"Filmoption International inc.",Westmount,Quebec,Canada,"EXIL (aka Trace (La))",French,"Drama (Film)",2015-05-11,49874.00,60000.00,"Recoupable Advance","Marketing Program","Amended contract signed  13-MAR-14"
2015-2016,P1,"Union Pictures of Canada Inc.",Toronto,Ontario,Canada,"Some Kind Of Love",English,Documentary,2015-05-13,12276.00,12276.00,"Recoupable Advance","Marketing Program",
2015-2016,P1,"Entertainment One Films Canada Inc.",Toronto,Ontario,Canada,"Sitting on the Edge of Marlene",English,"Drama (Film)",2015-05-13,25521.00,25521.00,"Recoupable Advance","Marketing Program",
2015-2016,P1,"Search Engine Films Inc.",Toronto,Ontario,Canada,"Wet Bum",English,"Drama (Film)",2015-05-14,15902.00,15902.00,"Recoupable Advance","Marketing Program",
2015-2016,P1,"A Blue Car Films Inc.",Vancouver,"British Columbia",Canada,"Songs She Wrote About People She Knows",English,Comedy,2015-05-14,12150.00,12150.00,"Recoupable Advance","Marketing Program",
2015-2016,P1,"9187-1608 Qu�bec inc",Longueuil,Quebec,Canada,"Embrasse-moi comme tu m'aimes (aka B�b�s Fourneau)",French,"Romantic Comedy",2015-05-14,1060000.00,1060000.00,Investment,"Production Program",
2015-2016,P1,"88 Films Inc.",Toronto,Ontario,Canada,88,English,Thriller,2015-05-19,50000.00,50000.00,"Recoupable Advance","Marketing Program",
2015-2016,P1,"Cruel & Unusual Productions Ltd.",Vancouver,"British Columbia",Canada,"Cruel & Unusual",English,"Drama (Film)",2015-05-20,5451.00,45000.00,"Recoupable Advance","Production Program","Amended contract signed  16-SEP-13"
2015-2016,P1,"Corporation de d�veloppement et de production ACPAV Inc.",Montreal,Quebec,Canada,"Le Journal d'un vieil homme",French,"Drama (Film)",2015-05-20,908161.00,952555.00,"Recoupable Advance","Production Program","Amended contract signed  21-JAN-14"
2015-2016,P1,"Lavender Films Inc.",Toronto,Ontario,Canada,Lavender,English,Thriller,2015-05-22,1300000.00,1300000.00,Investment,"Production Program",
2015-2016,P1,"Alliance Vivafilm Inc.",Montreal,Quebec,Canada,"Vrai du faux (Le)",French,Comedy,2015-05-25,526556.00,557731.00,"Recoupable Advance","Marketing Program","Amended contract signed  24-JUL-14"
2015-2016,P1,"Films S�ville Inc. (Les) / Seville Pictures Inc.",Montreal,Quebec,Canada,"Young and Prodigious T.S. SPIVET (The)",English,Action/Adventure,2015-05-25,82319.00,82319.00,"Recoupable Advance","Marketing Program",
2015-2016,P1,"Films Christal, s.e.c.(Les), agissant par l'interm�diaire de son commandit�, Les Films Christal Inc",Montreal,Quebec,Canada,CORBO,French,"Historical Drama",2015-05-26,116630.00,116630.00,"Recoupable Advance","Marketing Program",
2015-2016,P1,"Metropole Films Distribution",Montreal,Quebec,Canada,Uvanga,English,"Drama (Film)",2015-05-28,40935.00,44719.00,"Recoupable Advance","Marketing Program","Amended contract signed  21-JUL-14"
2015-2016,P1,"Item 7 Inc.",Montreal,Quebec,Canada,"Portfolio 2014-2015 Item 7 Inc.",French,Comedy,2015-05-29,148834.00,150000.00,"Recoupable Advance","Development Program","Amended contract signed  09-JAN-15"
2015-2016,P1,"Productions Festives",Trois-Rivieres,Quebec,Canada,"Bleu Tonnerre",French,Musical,2015-05-31,800.00,800.00,Contribution,"International Marketing Program",
2015-2016,P1,"Productions du Rapide-Blanc Inc. (Les)",Montreal,Quebec,Canada,"Or du golfe (L')",French,Documentary,2015-06-05,15000.00,15000.00,"Recoupable Advance","Marketing Program",
2015-2016,P1,"Scythia Films Inc.",Toronto,Ontario,Canada,"Bang Bang Baby",English,Musical,2015-06-08,2500.00,2500.00,Contribution,"International Marketing Program",
2015-2016,P1,"FIRST WEEKEND CLUB","North Vancouver","British Columbia",Canada,"First Weekend Club (2015) ",English,N/A,2015-06-08,98350.00,98350.00,Contribution,"Promotion Program",
2015-2016,P1,"Canadian Film Institute",Ottawa,Ontario,Canada,"Ottawa International Animation Festival",English,N/A,2015-06-08,44002.00,44002.00,Contribution,"Promotion Program",
2015-2016,P1,"Unobstructed View Inc.",Toronto,Ontario,Canada,"Patch Town",English,Sci.fi./Fantasy/Tale,2015-06-10,45338.00,45338.00,"Recoupable Advance","Marketing Program",
2015-2016,P1,"Women In Film & Television Toronto",Toronto,Ontario,Canada,"Development Incubator Program 2015",English,N/A,2015-06-11,20000.00,20000.00,Contribution,"Promotion Program",
2015-2016,P1,"Caribbean Tales",Toronto,Ontario,Canada,"Market Access Incubator",English,N/A,2015-06-11,3000.00,3000.00,Contribution,"Promotion Program",
2015-2016,P1,"Caribbean Tales",Toronto,Ontario,Canada,"CaribbeanTales Youth Film Festival",English,N/A,2015-06-11,2419.00,2419.00,Contribution,"Promotion Program",
2015-2016,P1,"Baker Boys Productions Inc.",Vancouver,"British Columbia",Canada,"Edge of Winter",English,"Drama (Film)",2015-06-12,500000.00,500000.00,Investment,"Production Program",
2015-2016,P1,"Made By Other People Inc.",Toronto,Ontario,Canada,"Rainbow Kid (The)",English,"Drama (Film)",2015-06-12,50000.00,50000.00,Investment,"Production Program",
2015-2016,P1,"White Pine Pictures Inc.",Toronto,Ontario,Canada,"Sugar Coated",English,Documentary,2015-06-15,37500.00,37500.00,"Recoupable Advance","Marketing Program",
2015-2016,P1,"9268-4000 Quebec Inc.",Montreal,Quebec,Canada,BOOST,English,"Drama (Film)",2015-06-15,400000.00,400000.00,Investment,"Production Program",
2015-2016,P1,"Interactive Ontario Industry Association",Toronto,Ontario,Canada,"Interactive Ontario Professional Development Initiatives",English,N/A,2015-06-16,20000.00,20000.00,Contribution,"Promotion Program",
2015-2016,P1,"Gimli Film Festival Inc. ",Gimli,Manitoba,Canada,"Gimli Film Festival 2015",English,N/A,2015-06-17,16223.00,16223.00,Contribution,"Promotion Program",
2015-2016,P1,"A71 Entertainment Inc.",Toronto,Ontario,Canada,"Valley Below (The)",English,"Drama (Film)",2015-06-19,50000.00,50000.00,"Recoupable Advance","Marketing Program",
2015-2016,P1,"Naardfilm Inc.",Toronto,Ontario,Canada,"Death (and Life) of Carl Naardlinger (The) ",English,Comedy,2015-06-19,100000.00,100000.00,"Recoupable Advance","Production Program",
2015-2016,P1,"Festival international de cin�ma et d'art de Perc�",Perce,Quebec,Canada,"Perc�ides - Festival international de cin�ma et d'art de Perc 2015 (7e)",French,N/A,2015-06-19,5408.00,5408.00,Contribution,"Promotion Program",
2015-2016,P1,"Atlantic Film Festival Association",Halifax,"Nova Scotia",Canada,"AFF_SP 2015",English,N/A,2015-06-19,155668.00,155668.00,Contribution,"Promotion Program",
2015-2016,P1,"Festival de Cin�ma de la Ville de Qu�bec",Quebec,Quebec,Canada,"Festival de cin�ma de la ville de Qu�bec 2015 - 5e �dition",French,N/A,2015-06-19,30204.00,30204.00,Contribution,"Promotion Program",
2015-2016,P1,"Entertainment One Films Canada Inc.",Toronto,Ontario,Canada,"F-Word (The)",English,"Romantic Comedy",2015-06-22,1535728.00,1545100.00,"Recoupable Advance","Marketing Program","Amended contract signed  04-DEC-14"
2015-2016,P1,"Union Pictures of Canada Inc.",Toronto,Ontario,Canada,"How To Be Deadly",English,Comedy,2015-06-23,66000.00,66000.00,"Recoupable Advance","Marketing Program",
2015-2016,P1,"Bruit des arbres Inc. (Le)",Montreal,Quebec,Canada,"Bruit des arbres (Le)",French,"Drama (Film)",2015-06-23,10000.00,10000.00,Contribution,"International Marketing Program",
2015-2016,P1,"Remstar Films Inc.",Montreal,Quebec,Canada,"Paul � Qu�bec",French,"Drama (Film)",2015-06-25,231712.00,231712.00,"Recoupable Advance","Marketing Program",
2015-2016,P1,"Female Eye Film Festival (The)",Woodbridge,Ontario,Canada,"Female Eye Film Festival",English,N/A,2015-06-25,2820.00,2820.00,Contribution,"Promotion Program",
2015-2016,P1,"Film Forge Productions Inc.",Toronto,Ontario,Canada,"Sleeping Giant",English,"Drama (Film)",2015-06-29,35000.00,25000.00,Contribution,"International Marketing Program","Amended contract signed  06-MAY-15"
2015-2016,P1,"Attraction Images inc.",Montreal,Quebec,Canada,"Portfolio 2013-2014 Attraction Images inc.",French,Thriller,2015-06-29,118800.00,137768.00,"Recoupable Advance","Development Program","Amended contract signed  18-DEC-13"
2015-2016,P1,"Mis�ricorde Le Film Inc.",Montreal,Quebec,Canada,Mis�ricorde,French,Mystery/Crime/Police,2015-06-29,125000.00,125000.00,"Recoupable Advance","Production Program",
2015-2016,P1,"Search Engine Films Inc.",Toronto,Ontario,Canada,Guidance,English,Comedy,2015-06-29,19313.00,19313.00,"Recoupable Advance","Marketing Program",
2015-2016,P1,"Attraction Images Productions II inc.",Montreal,Quebec,Canada,"Nitro Rush",French,Action/Adventure,2015-06-30,2040000.00,2040000.00,Investment,"Production Program",
2015-2016,P2,"A71 Entertainment Inc.",Toronto,Ontario,Canada,"Pretend We're Kissing",English,"Romantic Comedy",2015-07-02,50000.00,50000.00,"Recoupable Advance","Marketing Program",
2015-2016,P2,"Hot Docs",Toronto,Ontario,Canada,"Hot Docs 2015-2016 Activities",English,N/A,2015-07-02,300000.00,300000.00,Contribution,"Promotion Program",
2015-2016,P2,"Motel Jobro TOH Inc.",Toronto,Ontario,Canada,"Other Half (The)",English,"Drama (Film)",2015-07-02,350000.00,350000.00,Investment,"Production Program",
2015-2016,P2,"Louise en hiver inc.",Montreal,Quebec,Canada,"Louise en hiver",French,"Drama (Film)",2015-07-02,50000.00,50000.00,"Investment, Recoupable Advance",Mini-treaties,
2015-2016,P2,"Louise en hiver inc.",Montreal,Quebec,Canada,"Louise en hiver",French,"Drama (Film)",2015-07-02,300000.00,350000.00,"Investment, Recoupable Advance","Production Program",
2015-2016,P2,"D Films Corporation",Toronto,Ontario,Canada,Revolution,English,Documentary,2015-07-06,1050916.00,37500.00,"Recoupable Advance","Marketing Program","Amended contract signed  26-OCT-12"
2015-2016,P2,"Fondation Qu�bec cin�ma",Montreal,Quebec,Canada,"Tourn�e des Rendez-vous du cin�ma qu�b�cois 2015-16 (La)",French,N/A,2015-07-08,63000.00,63000.00,Contribution,"Promotion Program",
2015-2016,P2,"Fondation Qu�bec cin�ma",Montreal,Quebec,Canada,"GALA DU CIN�MA QU�B�COIS 2016 (18e) incluant les initiatives de promotion des talents qu�b�cois",French,N/A,2015-07-08,117031.00,117031.00,Contribution,"Promotion Program",
2015-2016,P2,"Stickgirl Productions Inc.",Vancouver,"British Columbia",Canada,"Window Horses",English,"Drama (Film)",2015-07-09,183333.00,100000.00,"Recoupable Advance","Production Program","Amended contract signed  02-FEB-15"
2015-2016,P2,"The Space Between Productions Inc.",Oakville,Ontario,Canada,"Space Between (The)",English,Comedy,2015-07-09,120000.00,120000.00,Contribution,"Micro-Budget Production Program",
2015-2016,P2,"Whistler Film Festival Society",Whistler,"British Columbia",Canada,"Feature Project Lab 2015",English,N/A,2015-07-09,30000.00,30000.00,Contribution,"Promotion Program",
2015-2016,P2,"Association des cin�mas parall�les du Qu�bec",Montreal,Quebec,Canada,"Association des cin�mas parall�les du Qu�bec R�seau Plus 2015-2016",French,N/A,2015-07-09,102743.00,102743.00,Contribution,"Promotion Program",
2015-2016,P2,"Production Kan Cekti inc.",Brossard,Quebec,Canada,"L� o� Atilla passe...",French,"Drama (Film)",2015-07-09,65000.00,65000.00,Investment,"Production Program",
2015-2016,P2,"Fondation Qu�bec cin�ma",Montreal,Quebec,Canada,"Rendez-vous du cin�ma qu�b�cois 2016 (34e) ",French,N/A,2015-07-10,122113.00,122113.00,Contribution,"Promotion Program",
2015-2016,P2,"Cin�fest: The Sudbury Film Festival Inc.",Sudbury,Ontario,Canada,"Cinefest Sudbury International Film Festival",English,N/A,2015-07-10,59483.00,59483.00,Contribution,"Promotion Program",
2015-2016,P2,"9217-5959 Qu�bec inc.",Montreal,Quebec,Canada,"Cyclotron (Le)",French,Sci.fi./Fantasy/Tale,2015-07-10,400000.00,400000.00,Investment,"Production Program",
2015-2016,P2,"Corporation de d�veloppement et de production ACPAV Inc.",Montreal,Quebec,Canada,IQALUIT,French,"Drama (Film)",2015-07-13,1540000.00,1540000.00,"Recoupable Advance","Production Program",
2015-2016,P2,"9251-4181 Qu�bec inc.",Montreal,Quebec,Canada,"Trois p'tits cochons II (Les)",French,Comedy,2015-07-13,2200000.00,2200000.00,Investment,"Production Program",
2015-2016,P2,"LGDT-3D INC",Montreal,Quebec,Canada,"GUERRE DES TUQUES 3D (LA)",French,Comedy,2015-07-14,1530000.00,1450000.00,"Investment, Recoupable Advance","Production Program","Amended contract signed  20-AUG-13"
2015-2016,P2,"Raven Banner Releasing Inc.",Toronto,Ontario,Canada,"Turbo Kid",English,Sci.fi./Fantasy/Tale,2015-07-14,93450.00,93450.00,"Recoupable Advance","Marketing Program",
2015-2016,P2,"Banff Television Festival Foundation",Toronto,Ontario,Canada,"Banff World Media Festival 2015",English,N/A,2015-07-14,110000.00,110000.00,Contribution,"Promotion Program",
2015-2016,P2,"Acad�mie canadienne du cin�ma et de la t�l�vision / Academy of Canadian cinema and Television ",Toronto,Ontario,Canada,"2016 Canadian Screen Awards",English,N/A,2015-07-14,360511.00,360511.00,Contribution,"Promotion Program",
2015-2016,P2,"Canadian Film in the Schools",Toronto,Ontario,Canada,"REEL CANADA: Canadian Film in the Schools and the National Canadian Film Day",English,N/A,2015-07-15,129113.00,129113.00,Contribution,"Promotion Program",
2015-2016,P2,"Voyelles Films Productions inc.",Montreal,Quebec,Canada,"Coeur de madame Sabali (Le)",French,Comedy,2015-07-16,65000.00,65000.00,Investment,"Production Program",
2015-2016,P2,"Festival du nouveau cin�ma de Montr�al ",Montreal,Quebec,Canada,"""Festival du nouveau cin�ma 2015 (44e) incluant l'initiative """"Cartes blanches 2015""""""",French,N/A,2015-07-17,183031.00,183031.00,Contribution,"Promotion Program",
2015-2016,P2,"The Centre for Aboriginal Media",Toronto,Ontario,Canada,"The Centre for Aboriginal Media (Ontario)",English,N/A,2015-07-20,16223.00,16223.00,Contribution,"Promotion Program",
2015-2016,P2,"9204-8628 Quebec Inc.",Montreal,Quebec,Canada,"Boris sans B�atrice",French,"Drama (Film)",2015-07-21,760000.00,760000.00,"Recoupable Advance","Production Program",
2015-2016,P2,"Short Stop Pictures VIII Ltd.",Halifax,"Nova Scotia",Canada,"Short Film Face Off Season Eight",English,N/A,2015-07-21,30000.00,30000.00,Contribution,"Promotion Program",
2015-2016,P2,"Films S�ville Inc. (Les) / Seville Pictures Inc.",Montreal,Quebec,Canada,"Dr. Cabbie",English,Comedy,2015-07-24,762429.00,830765.00,"Recoupable Advance","Marketing Program","Amended contract signed  03-DEC-14"
2015-2016,P2,"Independent Edge Films Inc.",Vancouver,"British Columbia",Canada,"Portfolio 2015-2016 Independent Edge Films Inc.",English,Comedy,2015-07-24,20000.00,45000.00,"Recoupable Advance","Development Program","Amended contract signed  24-JUL-15"
2015-2016,P2,"Independent Edge Films Inc.",Vancouver,"British Columbia",Canada,"Portfolio 2015-2016 Independent Edge Films Inc.",English,Thriller,2015-07-24,45000.00,45000.00,"Recoupable Advance","Development Program","Amended contract signed  24-JUL-15"
2015-2016,P2,"Standing 8 Productions Inc.",Halifax,"Nova Scotia",Canada,"Portfolio 2015-2016 Standing 8 Productions Inc.",English,Action/Adventure,2015-07-24,15000.00,15000.00,"Recoupable Advance","Development Program",
2015-2016,P2,"Bedbugs Films Inc.",Winnipeg,Manitoba,Canada,"Portfolio 2015-2016 Bedbugs Films Inc.",English,Comedy,2015-07-24,15000.00,15000.00,"Recoupable Advance","Development Program",
2015-2016,P2,"Lady Hammond Entertainment Inc.",Dartmouth,"Nova Scotia",Canada,"Portfolio 2015-2016 Lady Hammond Entertainment Inc.",English,Sci.fi./Fantasy/Tale,2015-07-24,15000.00,15000.00,"Recoupable Advance","Development Program",
2015-2016,P2,"Festina Lente Productions Inc.",Chester,"Nova Scotia",Canada,"Portfolio 2015-2016 Festina Lente Productions Inc.",English,Thriller,2015-07-24,15000.00,15000.00,"Recoupable Advance","Development Program",
2015-2016,P2,"Whistler Film Festival Society",Whistler,"British Columbia",Canada,"Whistler Film Festival and Summit 2015",English,N/A,2015-07-24,37853.00,37853.00,Contribution,"Promotion Program",
2015-2016,P2,"7059213 Canada Inc.",Gatineau,Quebec,Canada,"Le Dep",French,"Drama (Film)",2015-07-24,7496.00,7496.00,Contribution,"International Marketing Program",
2015-2016,P2,"D Films Corporation",Toronto,Ontario,Canada,Backcountry,English,Thriller,2015-07-27,221297.00,221297.00,"Recoupable Advance","Marketing Program",
2015-2016,P2,"Films Christal, s.e.c.(Les), agissant par l'interm�diaire de son commandit�, Les Films Christal Inc",Montreal,Quebec,Canada,"Love project",French,"Drama (Film)",2015-07-28,63972.00,67819.00,"Recoupable Advance","Marketing Program","Amended contract signed  09-DEC-14"
2015-2016,P2,"La Bo�te � Fanny inc.",Montreal,Quebec,Canada,"Portfolio 2015-2016 La Bo�te � Fanny inc.",French,Comedy,2015-07-28,20000.00,20000.00,"Recoupable Advance","Development Program",
2015-2016,P2,"Fella Films Inc. ",Kanata,Ontario,Canada,"Portfolio 2015-2016 Fella Films Inc.",English,Comedy,2015-07-29,15000.00,15000.00,"Recoupable Advance","Development Program",
2015-2016,P2,"Mongrel Media Inc.",Toronto,Ontario,Canada,Preggoland,English,Comedy,2015-07-30,101640.00,101640.00,"Recoupable Advance","Marketing Program",
2015-2016,P2,"Paul Spence & Associates","Sainte-Marguerite-du-Lac-Masson ",Quebec,Canada,"Portfolio 2015-2016 Paul Spence & Associates",English,Comedy,2015-07-30,15000.00,15000.00,"Recoupable Advance","Development Program",
2015-2016,P2,"P�riph�ria Productions Inc.",Montreal,Quebec,Canada,"X Quinientos",French,Action/Adventure,2015-07-30,250000.00,250000.00,Investment,"Production Program",
2015-2016,P2,"9286-4297 Qu�bec Inc.",Montreal,Quebec,Canada,"Antoine et Marie",French,"Drama (Film)",2015-07-31,35000.00,35000.00,"Recoupable Advance","Marketing Program",
2015-2016,P2,"Productions Sc�nat de L'Abitibi-Temiscamingue",Rouyn-Noranda,Quebec,Canada,"Festival du cin�ma international en Abitibi-T�miscamingue 2015 (34e)",French,N/A,2015-07-31,62082.00,62082.00,Contribution,"Promotion Program",
2015-2016,P2,"Raven Banner Releasing Inc.",Toronto,Ontario,Canada,Borealis,English,"Drama (Film)",2015-08-04,136950.00,136950.00,"Recoupable Advance","Marketing Program",
2015-2016,P2,"Les Films de L'Hydre Inc. ",Montreal,Quebec,Canada,"Portfolio 2015-2016 Les Films de L'Hydre Inc.",French,"Romantic Comedy",2015-08-04,15000.00,15000.00,"Recoupable Advance","Development Program",
2015-2016,P2,"Motion Picture Theatre Associations Of Canada / Associations des cin�mas du Canada",Toronto,Ontario,Canada,"ShowCanada 2015",English,N/A,2015-08-04,25000.00,25000.00,Contribution,"Promotion Program",
2015-2016,P2,"Planet in Focus: International Environmental Film & Video Festival",Toronto,Ontario,Canada,"16th Annual Planet in Focus: International Environmental Film & Video Festival",English,N/A,2015-08-04,3000.00,3000.00,Contribution,"Promotion Program",
2015-2016,P2,"Open Roof Films Entertainment Inc.",Toronto,Ontario,Canada,"Open Roof Festival 2015",English,N/A,2015-08-04,15000.00,15000.00,Contribution,"Promotion Program",
2015-2016,P2,"Intuitive Pictures Inc.",Montreal,Quebec,Canada,"Avortement 2.0",French,Documentary,2015-08-05,23000.00,0.00,"Recoupable Advance",Mini-treaties,
2015-2016,P2,"Edmonton International Film Festival Society",Edmonton,Alberta,Canada,"Edmonton International Film Festival (2015)",English,N/A,2015-08-05,26170.00,26170.00,Contribution,"Promotion Program",
2015-2016,P2,"St. John's International Women's Film Festival, Inc.","St. John's",Newfoundland/Labrador,Canada,"26th annual St. John's International Women's Film Festival",English,N/A,2015-08-05,18260.00,18260.00,Contribution,"Promotion Program",
2015-2016,P2,"Meridian Artists Inc.",Toronto,Ontario,Canada,"2016 Toronto Screenwriting Conference (TSC)",English,N/A,2015-08-05,8000.00,8000.00,Contribution,"Promotion Program",
2015-2016,P2,"Goon 2 Productions Inc.",Toronto,Ontario,Canada,"Goon: Last of the Enforcers",English,Comedy,2015-08-05,3500000.00,3500000.00,Investment,"Production Program",
2015-2016,P2,"A71 Entertainment Inc.",Toronto,Ontario,Canada,"It Was You Charlie",English,"Drama (Film)",2015-08-06,102289.00,105000.00,"Recoupable Advance","Marketing Program","Amended contract signed  06-NOV-14"
2015-2016,P2,"9302-6847 Qu�bec Inc.",Montreal,Quebec,Canada,"Chasse-Galerie: La l�gende",French,"Historical Drama",2015-08-06,2435000.00,2400000.00,"Investment, Recoupable Advance","Production Program","Amended contract signed  18-SEP-14"
2015-2016,P2,"Kingston Canadian Film Festival",Kingston,Ontario,Canada,"2016 Kingston Canadian Film Festival",English,N/A,2015-08-07,3245.00,3245.00,Contribution,"Promotion Program",
2015-2016,P2,"Lyla Films Inc.",Montreal,Quebec,Canada,"Portfolio 2015-2016 Lyla Films Inc. - 2",French,Comedy,2015-08-10,18000.00,84000.00,"Recoupable Advance","Development Program","Amended contract signed  10-AUG-15"
2015-2016,P2,"Lyla Films Inc.",Montreal,Quebec,Canada,"Portfolio 2015-2016 Lyla Films Inc. - 2",French,"Drama (Film)",2015-08-10,33000.00,84000.00,"Recoupable Advance","Development Program","Amended contract signed  10-AUG-15"
2015-2016,P2,"Lyla Films Inc.",Montreal,Quebec,Canada,"Portfolio 2015-2016 Lyla Films Inc. - 2",French,Musical,2015-08-10,63000.00,84000.00,"Recoupable Advance","Development Program","Amended contract signed  10-AUG-15"
2015-2016,P2,"Lyla Films Inc.",Montreal,Quebec,Canada,"Portfolio 2015-2016 Lyla Films Inc. - 2",French,Sci.fi./Fantasy/Tale,2015-08-10,84000.00,84000.00,"Recoupable Advance","Development Program","Amended contract signed  10-AUG-15"
2015-2016,P2,"8705399 Canada Inc.",Montreal,Quebec,Canada,"Turbo Kid",English,Action/Adventure,2015-08-10,2000.00,2000.00,Contribution,"International Marketing Program",
2015-2016,P2,"A71 Entertainment Inc.",Toronto,Ontario,Canada,"The Canadian Indie Film Series",English,N/A,2015-08-11,20000.00,20000.00,Contribution,"Promotion Program",
2015-2016,P2,"TimeLapse Pictures Productions Inc.",Toronto,Ontario,Canada,"Waiting Room (The)",English,"Drama (Film)",2015-08-11,10000.00,10000.00,Contribution,"International Marketing Program",
2015-2016,P2,"Canadian Media Production Association - Association Canadienne de Production de M�dia",Ottawa,Ontario,Canada,"Trans Atlantic Partners 2015 & Telefilm Canada Marketing Mentorship Program 2016-17",English,N/A,2015-08-11,65000.00,65000.00,Contribution,"Promotion Program",
2015-2016,P2,"Toronto International Film Festival Inc.",Toronto,Ontario,Canada,"Toronto International Film Festival Inc. - 2015",English,N/A,2015-08-11,977710.00,977710.00,Contribution,"Promotion Program",
2015-2016,P2,"Productions 10e Ave inc.",St-Augustin-Desmaure,Quebec,Canada,"Portfolio 2015-2016 Productions 10e Ave Inc.",French,Action/Adventure,2015-08-12,32500.00,100000.00,"Recoupable Advance","Development Program","Amended contract signed  12-AUG-15"
2015-2016,P2,"Productions 10e Ave inc.",St-Augustin-Desmaure,Quebec,Canada,"Portfolio 2015-2016 Productions 10e Ave Inc.",French,Comedy,2015-08-12,83375.00,100000.00,"Recoupable Advance","Development Program","Amended contract signed  12-AUG-15"
2015-2016,P2,"Productions 10e Ave inc.",St-Augustin-Desmaure,Quebec,Canada,"Portfolio 2015-2016 Productions 10e Ave Inc.",English,"Drama (Film)",2015-08-12,100000.00,100000.00,"Recoupable Advance","Development Program","Amended contract signed  12-AUG-15"
2015-2016,P2,"Zone3 Inc.",Montreal,Quebec,Canada,"Portfolio 2013-2014 Zone3 INC.",French,Comedy,2015-08-12,40623.00,75000.00,"Recoupable Advance","Development Program","Amended contract signed  13-DEC-13"
2015-2016,P2,"Raven West Films Ltd.",Vancouver,"British Columbia",Canada,"Portfolio 2015-2016 Raven West Films Ltd.",English,"Drama (Film)",2015-08-12,15000.00,15000.00,"Recoupable Advance","Development Program",
2015-2016,P2,"Rencontres internationales du documentaire de Montr�al",Montreal,Quebec,Canada,"""Rencontres inter du documentaire de Montr�al 2015(18e)/Doc Circuit Montr�al(11e) Incluant """"Initiatives diverses 2015-16""""""",French,N/A,2015-08-13,90330.00,90330.00,Contribution,"Promotion Program",
2015-2016,P2,"BHM Productions Inc.",Toronto,Ontario,Canada,"Below Her Mouth",English,"Drama (Film)",2015-08-13,995000.00,995000.00,Investment,"Production Program",
2015-2016,P2,"Association coop�rative de productions audio-visuelles",Montreal,Quebec,Canada,"Portfolio 2015-2016 Association coop�rative de productions audio-visuelles",French,"Drama (Film)",2015-08-14,158621.00,200000.00,"Recoupable Advance","Development Program","Amended contract signed  14-AUG-15"
2015-2016,P2,"Association coop�rative de productions audio-visuelles",Montreal,Quebec,Canada,"Portfolio 2015-2016 Association coop�rative de productions audio-visuelles",French,Mystery/Crime/Police,2015-08-14,200000.00,200000.00,"Recoupable Advance","Development Program","Amended contract signed  14-AUG-15"
2015-2016,P2,"Praxis Centre For Screenwriters",Vancouver,"British Columbia",Canada,"Praxis Summer 2015 Workshop",English,N/A,2015-08-17,15000.00,15000.00,Contribution,"Promotion Program",
2015-2016,P2,"Toronto Reel Asian International Film Festival",Toronto,Ontario,Canada,"Toronto Reel Asian International Film Festival",English,N/A,2015-08-18,12978.00,12978.00,Contribution,"Promotion Program",
2015-2016,P2,"Buck Productions Inc.",Toronto,Ontario,Canada,"Portfolio 2015-2016 Buck Productions Inc.",English,Comedy,2015-08-19,15000.00,15000.00,"Recoupable Advance","Development Program",
2015-2016,P2,"Sudden Storm Entertainment Ltd. ",Toronto,Ontario,Canada,"Portfolio 2015-2016 Sudden Storm Entertainment Ltd.",English,Thriller,2015-08-19,15000.00,15000.00,"Recoupable Advance","Development Program",
2015-2016,P2,"Film Nelly inc.",Outremont,Quebec,Canada,NELLY,French,"Drama (Film)",2015-08-19,1450000.00,1450000.00,Investment,"Production Program",
2015-2016,P2,"Grassfire Films Inc.","New Waterford","Nova Scotia",Canada,Werewolf,English,"Drama (Film)",2015-08-20,120000.00,120000.00,Contribution,"Micro-Budget Production Program",
2015-2016,P2,"Possibles M�dia II Inc.",Montreal,Quebec,Canada,"Early Winter",English,"Drama (Film)",2015-08-20,24466.00,24466.00,Contribution,"International Marketing Program",
2015-2016,P2,"LIFE (Gen One) Canada Inc. ",Toronto,Ontario,Canada,Life,English,"Drama (Film)",2015-08-21,2400000.00,2300000.00,Investment,"Production Program","Amended contract signed  06-FEB-14"
2015-2016,P2,"Banana-Moon Sky Films Inc.",Toronto,Ontario,Canada,"Portfolio 2015-2016 Banana-Moon Sky Films Inc.",English,Comedy,2015-08-21,15000.00,15000.00,"Recoupable Advance","Development Program",
2015-2016,P2,"Media Connections Film Inc.","St. John's",Newfoundland/Labrador,Canada,"Portfolio 2015-2016 Media Connections Film Inc.",English,"Drama (Film)",2015-08-21,15000.00,15000.00,"Recoupable Advance","Development Program",
2015-2016,P2,"Funfilm Distribution Inc.",Montreal,Quebec,Canada,"F�lix et Meira",French,"Drama (Film)",2015-08-24,51440.00,52000.00,"Recoupable Advance","Marketing Program","Amended contract signed  23-DEC-14"
2015-2016,P2,"9097-4767 Qu�bec inc.",Montreal,Quebec,Canada,"Portfolio 2015-2016 9097-4767 Qu�bec Inc.",French,"Drama (Film)",2015-08-24,15000.00,15000.00,"Recoupable Advance","Development Program",
2015-2016,P2,"Zamata Films Incorporated",Edmonton,Alberta,Canada,"LoST - Loneliness of a Sewer Trucker",English,Comedy,2015-08-24,175000.00,175000.00,Investment,"Production Program",
2015-2016,P2,"Search Engine Films Inc.",Toronto,Ontario,Canada,"Bang Bang Baby",English,Musical,2015-08-25,34369.00,34369.00,"Recoupable Advance","Marketing Program",
2015-2016,P2,"Echo M�dia 9 Le Film Inc.",Montreal,Quebec,Canada,"9 Variations sur le vide",French,Comedy,2015-08-25,500000.00,500000.00,Investment,"Production Program",
2015-2016,P2,"Filmarto Inc.",Montreal,Quebec,Canada,"Portfolio 2015-2016 FILMARTO INC.",French,Comedy,2015-08-26,15000.00,30000.00,"Recoupable Advance","Development Program","Amended contract signed  26-AUG-15"
2015-2016,P2,"Filmarto Inc.",Montreal,Quebec,Canada,"Portfolio 2015-2016 FILMARTO INC.",English,"Historical Drama",2015-08-26,30000.00,30000.00,"Recoupable Advance","Development Program","Amended contract signed  26-AUG-15"
2015-2016,P2,"Geordie Sabbagh Productions Inc.",Toronto,Ontario,Canada,"Portfolio 2015-2016 Geordie Sabbagh Productions Inc.",English,Sci.fi./Fantasy/Tale,2015-08-26,15000.00,15000.00,"Recoupable Advance","Development Program",
2015-2016,P2,"A71 Entertainment Inc.",Toronto,Ontario,Canada,"Cocksure Lads Movie (The)",English,Musical,2015-08-27,82537.00,82537.00,"Recoupable Advance","Marketing Program",
2015-2016,P2,"New Brunswick Filmmakers Co-operative Limited",Fredericton,"New Brunswick",Canada,"2015 Silver Wave Film Festival",English,N/A,2015-08-27,3000.00,3000.00,Contribution,"Promotion Program",
2015-2016,P2,"KidCap Films Inc.",Mississauga,Ontario,Canada,"Kidnap Capital",English,"Drama (Film)",2015-08-28,2500.00,2500.00,Contribution,"International Marketing Program",
2015-2016,P2,"Middle Child Films Inc.",Toronto,Ontario,Canada,"Portfolio 2015-2016 Middle Child Films Inc.",English,Sci.fi./Fantasy/Tale,2015-09-01,15000.00,15000.00,"Recoupable Advance","Development Program",
2015-2016,P2,"Julijette Inc.",Winnipeg,Manitoba,Canada,"Portfolio 2015-2016 julijette inc.",English,Sci.fi./Fantasy/Tale,2015-09-01,15680.00,15680.00,"Recoupable Advance","Development Program",
2015-2016,P2,"2411706 Ontario Inc.",Toronto,Ontario,Canada,"Cocksure Lads Movie (The)",English,Musical,2015-09-01,4500.00,4500.00,Contribution,"International Marketing Program",
2015-2016,P2,"Festival Fantasia",Montreal,Quebec,Canada,"""Fantasia 2015 (19e) incluant l'initiative """"March� Fronti�res 2015""""""",French,N/A,2015-09-01,123719.00,123719.00,Contribution,"Promotion Program",
2015-2016,P2,"Grandpa Productions Ltd.",Toronto,Ontario,Canada,"From Here To Infirmity",English,Comedy,2015-09-02,150000.00,150000.00,"Recoupable Advance","Production Program",
2015-2016,P2,"Saaren Films Inc.",Toronto,Ontario,Canada,"23 Kilometres",English,Documentary,2015-09-02,10000.00,10000.00,Contribution,"International Marketing Program",
2015-2016,P2,"Canadian Media Production Association - B.C. Producers' Branch ",Vancouver,"British Columbia",Canada,"VIFF Industry Exchange ",English,N/A,2015-09-02,20000.00,20000.00,Contribution,"Promotion Program",
2015-2016,P2,Cin�franco,Toronto,Ontario,Canada,"Cin�franco 2016 (19e) ",French,N/A,2015-09-02,10815.00,10815.00,Contribution,"Promotion Program",
2015-2016,P2,"Wapikoni Mobile",Montreal,Quebec,Canada,"Projet de formation destin� aux jeunes autochtones 2015-16",French,N/A,2015-09-02,40000.00,40000.00,Contribution,"Promotion Program",
2015-2016,P2,"Ontario Media Development Corporation",Toronto,Ontario,Canada,"PLT and IFF at TIFF 2015",English,N/A,2015-09-02,18600.00,18600.00,Contribution,"Promotion Program",
2015-2016,P2,"Film Forge Productions Inc.",Toronto,Ontario,Canada,"Sleeping Giant",English,"Drama (Film)",2015-09-02,90000.00,90000.00,Investment,"Production Program",
2015-2016,P2,"Hunting Pignut Productions Ltd.","St. John's",Newfoundland/Labrador,Canada,"Hunting Pignut",English,"Drama (Film)",2015-09-02,400000.00,400000.00,Investment,"Production Program",
2015-2016,P2,"New Real Films Inc.",Toronto,Ontario,Canada,"Portfolio 2015-2016 New Real Films Inc.",English,"Drama (Film)",2015-09-03,20000.00,20000.00,"Recoupable Advance","Development Program",
2015-2016,P2,"Centre du Cin�ma Parall�le Inc.",Montreal,Quebec,Canada,"Cin�ma Parall�le - programmation annuelle canadienne 2015",French,N/A,2015-09-03,32445.00,32445.00,Contribution,"Promotion Program",
2015-2016,P2,"PTB Films Inc.",Montreal,Quebec,Canada,"La fleur du poirier s'ouvre en silence ",French,"Drama (Film)",2015-09-03,150000.00,150000.00,"Investment, Recoupable Advance","Production Program",
2015-2016,P2,"Mission Y�ti inc.",St-Augustin-Desmaure,Quebec,Canada,"Mission Y�ti",French,Action/Adventure,2015-09-03,950000.00,950000.00,"Investment, Recoupable Advance","Production Program",
2015-2016,P2,"Films Christal, s.e.c.(Les), agissant par l'interm�diaire de son commandit�, Les Films Christal Inc",Montreal,Quebec,Canada,"Henri Henri",French,"Drama (Film)",2015-09-04,220537.00,223783.00,"Recoupable Advance","Marketing Program","Amended contract signed  19-DEC-14"
2015-2016,P2,"Film Fabuleux inc.",Montreal,Quebec,Canada,"P�re fils th�rapie",French,Comedy,2015-09-04,1195600.00,1195600.00,"Recoupable Advance","Production Program",
2015-2016,P2,"Cin�mental inc. ",Winnipeg,Manitoba,Canada,"Cin�mental 2015 (24e)",French,N/A,2015-09-04,4046.00,4046.00,Contribution,"Promotion Program",
2015-2016,P2,"Lovesick Movie Inc.",Winnipeg,Manitoba,Canada,Lovesick,English,"Romantic Comedy",2015-09-04,300000.00,300000.00,Investment,"Production Program",
2015-2016,P2,"Microclimat Films Inc.",Montreal,Quebec,Canada,"Portfolio 2015-2016 Microclimat Films inc.",French,Comedy,2015-09-08,15000.00,15000.00,"Recoupable Advance","Development Program",
2015-2016,P2,"Manifold Pictures Inc.",Calgary,Alberta,Canada,"Northlander (The)",English,Sci.fi./Fantasy/Tale,2015-09-08,120000.00,120000.00,Contribution,"Micro-Budget Production Program",
2015-2016,P2,"Cin�math�que Qu�b�coise",Montreal,Quebec,Canada,"Sommets du cin�ma d'animation (Les) - Festival international de Montr�al (14e)",French,N/A,2015-09-08,10000.00,10000.00,Contribution,"Promotion Program",
2015-2016,P2,"Reprise Films Inc.","Town Of Mount Royal",Quebec,Canada,"Portfolio 2015-2016 Reprise Films Inc.",French,"Drama (Film)",2015-09-09,15000.00,15000.00,"Recoupable Advance","Development Program",
2015-2016,P2,"Calgary International Film Festival Society  ",Calgary,Alberta,Canada,"Calgary International Film Festival 2015",English,N/A,2015-09-09,27038.00,27038.00,Contribution,"Promotion Program",
2015-2016,P2,"Films S�ville Inc. (Les) / Seville Pictures Inc.",Montreal,Quebec,Canada,"Journal d'un vieil homme (Le)",French,"Drama (Film)",2015-09-10,101383.00,101383.00,"Recoupable Advance","Marketing Program",
2015-2016,P2,"9199-8294 Qu�bec Inc.",Montreal,Quebec,Canada,"D�mons (Les)",French,"Drama (Film)",2015-09-10,10000.00,10000.00,Contribution,"International Marketing Program",
2015-2016,P2,"Funfilm Distribution Inc.",Montreal,Quebec,Canada,"D�mons (Les)",French,"Drama (Film)",2015-09-11,47000.00,47000.00,"Recoupable Advance","Marketing Program",
2015-2016,P2,"Shore Road Pictures Inc.",Fredericton,"New Brunswick",Canada,"Portfolio 2015-2016 Shore Road Pictures Inc.",English,Comedy,2015-09-11,15000.00,15000.00,"Recoupable Advance","Development Program",
2015-2016,P2,"Hope of Glory Pictures Ltd.",Burnaby,"British Columbia",Canada,Numb,English,Thriller,2015-09-11,10000.00,10000.00,Contribution,"International Marketing Program",
2015-2016,P2,"Microscope inc.",Montreal,Quebec,Canada,"Guibord s'en va-t-en guerre",French,Comedy,2015-09-11,10000.00,10000.00,Contribution,"International Marketing Program",
2015-2016,P2,Paraloeil,Rimouski,Quebec,Canada,"Cin�ma Paraloeil - programmation 2015-2016",French,N/A,2015-09-11,8140.00,8140.00,Contribution,"Promotion Program",
2015-2016,P2,"9204237 Canada Inc.",Brampton,Ontario,Canada,"Mean Dreams",English,Thriller,2015-09-11,375000.00,375000.00,Investment,"Production Program",
2015-2016,P2,"9221-6878 Qu�bec Inc.",Montreal,Quebec,Canada,"Les �tres chers",French,"Drama (Film)",2015-09-14,9000.00,9000.00,Contribution,"International Marketing Program",
2015-2016,P2,"Carrousel international du film de Rimouski (Le)",Rimouski,Quebec,Canada,"Carrousel international du film de Rimouski 2015 (33e)",French,N/A,2015-09-14,25152.00,25152.00,Contribution,"Promotion Program",
2015-2016,P2,"Pixel Qu�bec",Quebec,Quebec,Canada,"Cartoon Connection Canada 2015 et Pixel Qu�bec 2016",French,N/A,2015-09-14,60000.00,60000.00,Contribution,"Promotion Program",
2015-2016,P2,"Entanglement Pictures Inc.",Vancouver,"British Columbia",Canada,Entanglement,English,"Romantic Comedy",2015-09-14,275000.00,275000.00,Investment,"Production Program",
2015-2016,P2,"Metafilms Inc.",Montreal,Quebec,Canada,"Portfolio 2015-2016 Metafilms Inc.",French,"Romantic Comedy",2015-09-15,50000.00,95000.00,"Recoupable Advance","Development Program","Amended contract signed  15-SEP-15"
2015-2016,P2,"Metafilms Inc.",Montreal,Quebec,Canada,"Portfolio 2015-2016 Metafilms Inc.",French,"Drama (Film)",2015-09-15,74500.00,95000.00,"Recoupable Advance","Development Program","Amended contract signed  15-SEP-15"
2015-2016,P2,"Metafilms Inc.",Montreal,Quebec,Canada,"Portfolio 2015-2016 Metafilms Inc.",English,Thriller,2015-09-15,95000.00,95000.00,"Recoupable Advance","Development Program","Amended contract signed  15-SEP-15"
2015-2016,P2,"Forum Films 2005 Inc.",Montreal,Quebec,Canada,"Portfolio 2015-2016 Forum Films 2005 Inc.",French,"Historical Drama",2015-09-15,45000.00,45000.00,"Recoupable Advance","Development Program",
2015-2016,P2,"Weirdos The Film Inc.",Halifax,"Nova Scotia",Canada,WEIRDOS,English,"Drama (Film)",2015-09-15,450000.00,450000.00,Investment,"Production Program",
2015-2016,P2,"Entertainment One Films Canada Inc.",Toronto,Ontario,Canada,"Hector and the Search for Happiness",English,"Drama (Film)",2015-09-16,715283.00,765442.00,"Recoupable Advance","Marketing Program","Amended contract signed  18-MAR-15"
2015-2016,P2,"9289-7081 Qu�bec inc.",Quebec,Quebec,Canada,"Feuilles Mortes",French,Sci.fi./Fantasy/Tale,2015-09-16,120000.00,120000.00,Contribution,"Micro-Budget Production Program",
2015-2016,P2,"Remember Productions Inc.",Toronto,Ontario,Canada,Remember,English,"Drama (Film)",2015-09-16,40000.00,40000.00,Contribution,"International Marketing Program",
2015-2016,P2,"2432333 Ontario Inc.",Toronto,Ontario,Canada,"League of Exotique Dancers",English,Documentary,2015-09-17,75000.00,75000.00,"Recoupable Advance","Theatrical Documentary Program",
2015-2016,P2,"Quadrant Motion Pictures Inc.",Toronto,Ontario,Canada,"Portfolio 2015-2016 Quadrant Motion Pictures Inc.",English,Comedy,2015-09-17,15000.00,15000.00,"Recoupable Advance","Development Program",
2015-2016,P2,"Joker Films Productions Inc.","North Vancouver","British Columbia",Canada,"Portfolio 2015-2016 Joker Films Productions Inc.",English,Comedy,2015-09-17,15000.00,15000.00,"Recoupable Advance","Development Program",
2015-2016,P2,"Festival du film de l'Outaouais",Montreal,Quebec,Canada,"Festival du film de l'Outaouais 2016 (18e) incluant l'initiative: Talent Canadiens 2016",French,N/A,2015-09-18,21069.00,21069.00,Contribution,"Promotion Program",
2015-2016,P2,"9320-4410 Qu�bec Inc.",Quebec,Quebec,Canada,"Pacte des anges (Le)",French,"Drama (Film)",2015-09-18,450000.00,450000.00,Investment,"Production Program",
2015-2016,P2,"La Distributrice de Films","Orford ",Quebec,Canada,Transatlantique,English,Documentary,2015-09-21,4226.00,4484.00,Contribution,"International Marketing Program","Amended contract signed  12-MAR-15"
2015-2016,P2,"Mad Samurai Productions Inc.",Vancouver,"British Columbia",Canada,"Portfolio 2015-2016 Mad Samurai Productions Inc.",English,Action/Adventure,2015-09-22,15000.00,50000.00,"Recoupable Advance","Development Program","Amended contract signed  22-SEP-15"
2015-2016,P2,"Mad Samurai Productions Inc.",Vancouver,"British Columbia",Canada,"Portfolio 2015-2016 Mad Samurai Productions Inc.",English,Comedy,2015-09-22,32500.00,50000.00,"Recoupable Advance","Development Program","Amended contract signed  22-SEP-15"
2015-2016,P2,"Mad Samurai Productions Inc.",Vancouver,"British Columbia",Canada,"Portfolio 2015-2016 Mad Samurai Productions Inc.",English,Thriller,2015-09-22,50000.00,50000.00,"Recoupable Advance","Development Program","Amended contract signed  22-SEP-15"
2015-2016,P2,"Films S�ville Inc. (Les) / Seville Pictures Inc.",Montreal,Quebec,Canada,"Ma�tres du suspense (Les)",French,Comedy,2015-09-22,552869.00,575498.00,"Recoupable Advance","Marketing Program","Amended contract signed  24-FEB-15"
2015-2016,P2,"Rock Island Productions Ltd.","St. John's",Newfoundland/Labrador,Canada,"Portfolio 2015-2016 Rock Island Productions Ltd.",English,"Drama (Film)",2015-09-22,15000.00,15000.00,"Recoupable Advance","Development Program",
2015-2016,P2,"Small Shack Productions Inc.","St. John's",Newfoundland/Labrador,Canada,Maudie,English,"Drama (Film)",2015-09-22,1650000.00,1650000.00,Investment,"Production Program",
2015-2016,P2,"Mongrel Media Inc.",Toronto,Ontario,Canada,"Empire Of Dirt",English,"Drama (Film)",2015-09-23,28071.00,67732.00,"Recoupable Advance","Marketing Program","Amended contract signed  10-MAR-14"
2015-2016,P2,"Films 53/12 Inc.",Montreal,Quebec,Canada,"Portfolio 2012-2013 9125-6396 Qu�bec Inc.",French,"Romantic Comedy",2015-09-23,30000.00,60000.00,"Recoupable Advance","Development Program","Amended contract signed  20-NOV-12"
2015-2016,P2,"Serendipity Point Films Inc.",Toronto,Ontario,Canada,"Portfolio 2015-2016 Serendipity Point Films Inc.",English,Action/Adventure,2015-09-23,116806.00,116806.00,"Recoupable Advance","Development Program",
2015-2016,P2,"Productions Pays Inc.",Montreal,Quebec,Canada,Pays,French,"Drama (Film)",2015-09-23,150000.00,150000.00,"Recoupable Advance","Production Program",
2015-2016,P2,"Jill and Jackfish Productions Inc.",Yellowknife,"North West Territories",Canada,"Sun At Midnight (The)",English,Action/Adventure,2015-09-23,120000.00,120000.00,Contribution,"Micro-Budget Production Program",
2015-2016,P2,"Les Films du Boulevard Inc.",Montreal,Quebec,Canada,"Portfolio 2015-2016 Films du Boulevard Inc.",French,"Drama (Film)",2015-09-24,15000.00,15000.00,"Recoupable Advance","Development Program",
2015-2016,P2,"Crazy8s Film Society",Vancouver,"British Columbia",Canada,"Crazy8s Film Event 2015-2016",English,N/A,2015-09-24,20000.00,20000.00,Contribution,"Promotion Program",
2015-2016,P2,"Festival international du film pour enfants de Montr�al",Montreal,Quebec,Canada,"Festival International du Film pour Enfants de Montr�al 2016 (19e)",French,N/A,2015-09-25,16223.00,16223.00,Contribution,"Promotion Program",
2015-2016,P2,"7192836 Manitoba Inc.",Winnipeg,Manitoba,Canada,"Juliana & The Medicine Fish",English,"Drama (Film)",2015-09-25,250000.00,250000.00,Investment,"Production Program",
2015-2016,P2,"Forum Films 2005 Inc.",Montreal,Quebec,Canada,"Portfolio 2012-2013 Forum Films 2005 Inc.",French,"Romantic Comedy",2015-09-28,86414.00,60000.00,"Recoupable Advance","Development Program","Amended contract signed  23-JAN-13"
2015-2016,P2,"Screen Siren Pictures Inc.",Vancouver,"British Columbia",Canada,"Portfolio 2015-2016 Screen Siren Pictures Inc.",English,"Drama (Film)",2015-09-28,79403.00,100000.00,"Recoupable Advance","Development Program","Amended contract signed  28-SEP-15"
2015-2016,P2,"Screen Siren Pictures Inc.",Vancouver,"British Columbia",Canada,"Portfolio 2015-2016 Screen Siren Pictures Inc.",English,Thriller,2015-09-28,100000.00,100000.00,"Recoupable Advance","Development Program","Amended contract signed  28-SEP-15"
2015-2016,P2,"Stone Cold Productions Limited",Dartmouth,"Nova Scotia",Canada,"Portfolio 2015-2016 Stone Cold Productions Limited",English,"Drama (Film)",2015-09-28,15000.00,30000.00,"Recoupable Advance","Development Program","Amended contract signed  28-SEP-15"
2015-2016,P2,"Stone Cold Productions Limited",Dartmouth,"Nova Scotia",Canada,"Portfolio 2015-2016 Stone Cold Productions Limited",English,Mystery/Crime/Police,2015-09-28,30000.00,30000.00,"Recoupable Advance","Development Program","Amended contract signed  28-SEP-15"
2015-2016,P2,"Whizbang Films Distribution Inc.",Toronto,Ontario,Canada,Hellions,English,Thriller,2015-09-28,73875.00,73875.00,"Recoupable Advance","Marketing Program",
2015-2016,P2,"3 Legged Dog Films Ltd.",Toronto,Ontario,Canada,"Portfolio 2015-2016 3 Legged Dog Films Ltd.",English,"Historical Drama",2015-09-28,15000.00,15000.00,"Recoupable Advance","Development Program",
2015-2016,P2,"Acad�mie canadienne du cin�ma et de la t�l�vision (section Qu�bec) Inc.",Montreal,Quebec,Canada,"Prix G�meaux 2015 (30e) incluant l'initiative de promotion entourant les G�meaux",French,N/A,2015-09-28,136250.00,136250.00,Contribution,"Promotion Program",
2015-2016,P2,"Markham Street Films Inc.",Toronto,Ontario,Canada,"Portfolio 2015-2016 Markham Street Films Inc.",English,Comedy,2015-09-29,15000.00,15000.00,"Recoupable Advance","Development Program",
2015-2016,P2,"ReelWorld Film Festival Inc.",Toronto,Ontario,Canada,"Reelworld Film Festival",English,N/A,2015-09-29,28021.00,28021.00,Contribution,"Promotion Program",
2015-2016,P2,"Atlantic Filmmakers Cooperative Limited",Halifax,"Nova Scotia",Canada,"FILM 5 2015/16",English,N/A,2015-09-29,15000.00,15000.00,Contribution,"Promotion Program",
2015-2016,P2,"9322-3394 Qu�bec Inc.",Beaconsfield,Quebec,Canada,A,English,"Drama (Film)",2015-09-30,120000.00,120000.00,Contribution,"Micro-Budget Production Program",
2015-2016,P2,"Play Your Gender Inc.",Dartmouth,"Nova Scotia",Canada,"Play Your Gender",English,Documentary,2015-09-30,120000.00,120000.00,Contribution,"Micro-Budget Production Program",
2015-2016,P2,"Devout Productions Ltd.",Victoria,"British Columbia",Canada,"Devout (The)",English,"Drama (Film)",2015-09-30,10000.00,10000.00,Contribution,"International Marketing Program",
2015-2016,P2,"Productions Pimiento inc.",Montreal,Quebec,Canada,"L'ADN du ceviche",English,Documentary,2015-09-30,2200.00,2200.00,Contribution,"International Marketing Program",
2015-2016,P2,"Grandpa Productions Ltd.",Toronto,Ontario,Canada,"Undercover Grandpa",English,Comedy,2015-09-30,2000000.00,2000000.00,Investment,"Production Program",
2015-2016,P3,"Go Films L.P.R.S. inc.",Outremont,Quebec,Canada,"Portfolio 2015-2016 Go Films L.P.R.S. Inc.",French,Comedy,2015-10-01,78558.00,196947.00,"Recoupable Advance","Development Program","Amended contract signed  01-OCT-15"
2015-2016,P3,"Go Films L.P.R.S. inc.",Outremont,Quebec,Canada,"Portfolio 2015-2016 Go Films L.P.R.S. Inc.",French,"Drama (Film)",2015-10-01,196947.00,196947.00,"Recoupable Advance","Development Program","Amended contract signed  01-OCT-15"
2015-2016,P3,"Grandpa Productions Ltd.",Toronto,Ontario,Canada,"From Here To Infirmity",English,Comedy,2015-10-01,0.00,150000.00,"Recoupable Advance","Production Program","Amended contract signed  02-SEP-15"
2015-2016,P3,"FilmLoft Media Inc.",Aurora,Ontario,Canada,"Stand Up Man (The)",English,Comedy,2015-10-01,120000.00,120000.00,Contribution,"Micro-Budget Production Program",
2015-2016,P3,"8279454 Canada Inc.",Montreal,Quebec,Canada,"Rhymes for Young Ghouls",English,"Drama (Film)",2015-10-02,189297.00,200000.00,Investment,"Production Program","Amended contract signed  02-NOV-12"
2015-2016,P3,"Creative Women Workshops Association","North Vancouver","British Columbia",Canada,"Women In the Director's Chair (WIDC) 2016",English,N/A,2015-10-02,50000.00,50000.00,Contribution,"Promotion Program",
2015-2016,P3,"9268-4000 Quebec Inc.",Montreal,Quebec,Canada,BOOST,English,"Drama (Film)",2015-10-05,440000.00,400000.00,Investment,"Production Program","Amended contract signed  15-JUN-15"
2015-2016,P3,"Jane Silverstone Holdings Inc.",Saint-Laurent,Quebec,Canada,"Portfolio 2015-2016 Jane Silverstone Holdings Inc.",English,Action/Adventure,2015-10-06,15000.00,15000.00,"Recoupable Advance","Development Program",
2015-2016,P3,"Raven Banner Releasing Inc.",Toronto,Ontario,Canada,"Editor (The)",English,Horror,2015-10-07,49500.00,49500.00,"Recoupable Advance","Marketing Program",
2015-2016,P3,"Films Baliverna Inc. (les)",Montreal,Quebec,Canada,"Portfolio 2015-2016 Films Baliverna Inc. (les)",French,Horror,2015-10-07,15000.00,15000.00,"Recoupable Advance","Development Program",
2015-2016,P3,"ReelWorld Foundation",Toronto,Ontario,Canada,"IFL: Impact Film Lab",English,N/A,2015-10-07,15000.00,15000.00,Contribution,"Promotion Program",
2015-2016,P3,"Filmoption International inc.",Westmount,Quebec,Canada,"Gurov and Anna",English,"Drama (Film)",2015-10-08,30000.00,30000.00,"Recoupable Advance","Marketing Program",
2015-2016,P3,"Films S�ville Inc. (Les) / Seville Pictures Inc.",Montreal,Quebec,Canada,"Ego trip (anciennement Perdi an Ayiti)",French,Comedy,2015-10-08,516806.00,516806.00,"Recoupable Advance","Marketing Program",
2015-2016,P3,"Filmoption International inc.",Westmount,Quebec,Canada,"Turbo Kid",English,Sci.fi./Fantasy/Tale,2015-10-08,79538.00,79538.00,"Recoupable Advance","Marketing Program",
2015-2016,P3,"Yer Dead Productions Inc.",Halifax,"Nova Scotia",Canada,"Portfolio 2015-2016 Yer Dead Productions Inc.",English,Action/Adventure,2015-10-09,35000.00,35000.00,"Recoupable Advance","Development Program",
2015-2016,P3,"PCF SNEIJDER LE FILM INC.",Montreal,Quebec,Canada,"NOUVELLE VIE DE PAUL SNEIJDER (LA)",French,"Drama (Film)",2015-10-09,100000.00,100000.00,"Investment, Recoupable Advance",Mini-treaties,
2015-2016,P3,"PCF SNEIJDER LE FILM INC.",Montreal,Quebec,Canada,"NOUVELLE VIE DE PAUL SNEIJDER (LA)",French,"Drama (Film)",2015-10-09,400000.00,400000.00,"Investment, Recoupable Advance","Production Program",
2015-2016,P3,"Productions Pays Inc.",Montreal,Quebec,Canada,Pays,French,"Drama (Film)",2015-10-13,0.00,150000.00,"Recoupable Advance","Production Program","Amended contract signed  23-SEP-15"
2015-2016,P3,"Pope Productions Ltd.","St. John's",Newfoundland/Labrador,Canada,"Portfolio 2015-2016 Pope Productions Ltd.",English,"Drama (Film)",2015-10-14,35000.00,35000.00,"Recoupable Advance","Development Program",
2015-2016,P3,"Coop Vid�o de Montr�al",Montreal,Quebec,Canada,"Portfolio 2015-2016 Coop Vid�o de Montr�al",French,"Drama (Film)",2015-10-14,35000.00,35000.00,"Recoupable Advance","Development Program",
2015-2016,P3,"Maurice Smith Productions Inc.",Vancouver,"British Columbia",Canada,"Portfolio 2015-2016 Maurice Smith Productions Inc.",English,Comedy,2015-10-14,15000.00,15000.00,"Recoupable Advance","Development Program",
2015-2016,P3,"22 Chaser Productions Inc. ",Toronto,Ontario,Canada,"22 Chaser",English,"Drama (Film)",2015-10-14,300000.00,300000.00,Investment,"Production Program",
2015-2016,P3,"Euclid 431 Pictures Inc.",Toronto,Ontario,Canada,"Portfolio 2015-2016 Euclid 431 Pictures Inc.",English,"Drama (Film)",2015-10-16,20000.00,20000.00,"Recoupable Advance","Development Program",
2015-2016,P3,"Rhombus Media Inc.",Toronto,Ontario,Canada,"Closet Monster",English,"Drama (Film)",2015-10-16,4292.00,4292.00,Contribution,"International Marketing Program",
2015-2016,P3,"Milton's Secret Productions Inc.",Toronto,Ontario,Canada,"Milton's Secret",English,"Drama (Film)",2015-10-16,500000.00,500000.00,Investment,"Production Program",
2015-2016,P3,"Six Island Productions Inc.",Toronto,Ontario,Canada,"Portfolio 2015-2016 Six Island Productions Inc.",English,"Drama (Film)",2015-10-18,15000.00,15000.00,"Recoupable Advance","Development Program",
2015-2016,P3,"Alcina Pictures Ltd.",Toronto,Ontario,Canada,"Portfolio 2015-2016 Alcina Pictures Ltd.",English,"Drama (Film)",2015-10-19,25000.00,25000.00,"Recoupable Advance","Development Program",
2015-2016,P3,"Mark Krupa Inc.",Montreal,Quebec,Canada,"Portfolio 2015-2016 Mark Krupa Inc.",English,Sci.fi./Fantasy/Tale,2015-10-19,15000.00,15000.00,"Recoupable Advance","Development Program",
2015-2016,P3,"Newfoundland Independent Filmmakers Co-Operative Limited","St. John's",Newfoundland/Labrador,Canada,"Picture Start 10",English,N/A,2015-10-19,52000.00,52000.00,Contribution,"Promotion Program",
2015-2016,P3,"Search Engine Films Inc.",Toronto,Ontario,Canada,Guidance,English,Comedy,2015-10-20,17711.00,19313.00,"Recoupable Advance","Marketing Program","Amended contract signed  29-JUN-15"
2015-2016,P3,"Cardinal Pictures Inc.",Toronto,Ontario,Canada,Cardinal,English,"Drama (Film)",2015-10-20,120000.00,120000.00,Contribution,"Micro-Budget Production Program",
2015-2016,P3,"Canadian Film Centre",Toronto,Ontario,Canada,"2015/2016 Telefilm Canada Feature Comedy Exchange",English,N/A,2015-10-20,174250.00,174250.00,Contribution,"Promotion Program",
2015-2016,P3,"Hollow in the Land Pictures Inc.",Vancouver,"British Columbia",Canada,"Hollow In The Land",English,Thriller,2015-10-20,250000.00,250000.00,Investment,"Production Program",
2015-2016,P3,"Elevation Pictures Corp.",Toronto,Ontario,Canada,"Hyena Road",English,"Drama (Film)",2015-10-21,1788892.00,1788892.00,"Recoupable Advance","Marketing Program",
2015-2016,P3,"Productions l'unit� centrale inc.",Montreal,Quebec,Canada,"Portfolio 2015-2016 Productions l'unit� centrale inc.",French,"Drama (Film)",2015-10-21,15000.00,15000.00,"Recoupable Advance","Development Program",
2015-2016,P3,"Scythia Films Inc.",Toronto,Ontario,Canada,"Portfolio 2015-2016 Scythia Films Inc.",English,Comedy,2015-10-21,15000.00,15000.00,"Recoupable Advance","Development Program",
2015-2016,P3,"Yorkton Short Film and Video Festival Inc.",Yorkton,Saskatchewan,Canada,"Yorkton Short Film and Video Festival (2016)",English,N/A,2015-10-21,22045.00,22045.00,Contribution,"Promotion Program",
2015-2016,P3,"Banner House Productions Inc. ",Montreal,Quebec,Canada,"Portfolio 2015-2016 Banner House Productions Inc.",English,"Romantic Comedy",2015-10-22,15000.00,15000.00,"Recoupable Advance","Development Program",
2015-2016,P3,"Hill 100 Productions Inc.",Toronto,Ontario,Canada,"Portfolio 2015-2016 Hill 100 Productions Inc.",English,Action/Adventure,2015-10-22,15000.00,15000.00,"Recoupable Advance","Development Program",
2015-2016,P3,"Carousel Pictures Inc.",Toronto,Ontario,Canada,"Portfolio 2015-2016 Carousel Pictures Inc.",English,"Drama (Film)",2015-10-22,15000.00,15000.00,"Recoupable Advance","Development Program",
2015-2016,P3,"Production Ville-Marie inc.",Montreal,Quebec,Canada,VILLE-MARIE,French,"Drama (Film)",2015-10-22,1010.00,1010.00,Contribution,"International Marketing Program",
2015-2016,P3,"Les Productions du Moment Inc.",Saint-Basile-le-Grand,Quebec,Canada,"Garagiste (Le)",French,"Drama (Film)",2015-10-22,65000.00,65000.00,Investment,"Production Program",
2015-2016,P3,"First Round Productions Inc.",Toronto,Ontario,Canada,"First Round Down",English,Comedy,2015-10-22,130072.00,130072.00,Investment,"Production Program",
2015-2016,P3,"Orange M�dias Inc.",Rosemere,Quebec,Canada,"Portfolio 2015-2016 Orange M�dias Inc.",French,Comedy,2015-10-23,15000.00,80000.00,"Recoupable Advance","Development Program","Amended contract signed  23-OCT-15"
2015-2016,P3,"Orange M�dias Inc.",Rosemere,Quebec,Canada,"Portfolio 2015-2016 Orange M�dias Inc.",French,"Drama (Film)",2015-10-23,80000.00,80000.00,"Recoupable Advance","Development Program","Amended contract signed  23-OCT-15"
2015-2016,P3,"Filmoption International inc.",Westmount,Quebec,Canada,VILLE-MARIE,French,"Drama (Film)",2015-10-23,300000.00,300000.00,"Recoupable Advance","Marketing Program",
2015-2016,P3,"Canadian Media Production Association - Association Canadienne de Production de M�dia",Ottawa,Ontario,Canada,"Prime Time in Ottawa 2016",English,N/A,2015-10-23,25000.00,25000.00,Contribution,"Promotion Program",
2015-2016,P3,"Zeeworks Pictures Inc.",Vancouver,"British Columbia",Canada,"Portfolio 2015-2016 Zeeworks Pictures Inc.",English,Action/Adventure,2015-10-27,25000.00,25000.00,"Recoupable Advance","Development Program",
2015-2016,P3,"Film Zone Inc.",Moncton,"New Brunswick",Canada,"Festival international du cin�ma francophone en Acadie 2015 (29e) incluant l'initiatives diverses 2015-16",French,N/A,2015-10-27,52808.00,52808.00,Contribution,"Promotion Program",
2015-2016,P3,"Mongrel Media Inc.",Toronto,Ontario,Canada,"Beeba Boys",English,"Drama (Film)",2015-10-28,911625.00,911625.00,"Recoupable Advance","Marketing Program",
2015-2016,P3,"1976 Productions inc.",Montreal,Quebec,Canada,"Portfolio 2015-2016 1976 Productions Inc.",English,"Romantic Comedy",2015-10-28,15000.00,15000.00,"Recoupable Advance","Development Program",
2015-2016,P3,"Jean Of The Joneses Productions Inc.",Mississauga,Ontario,Canada,"Jean of the Joneses",English,Comedy,2015-10-28,220000.00,220000.00,Investment,"Production Program",
2015-2016,P3,"Groupe TVA inc. (Faisant affaires sous le nom de TVA Films)",Montreal,Quebec,Canada,"Garagiste (Le)",French,"Drama (Film)",2015-10-29,40000.00,40000.00,"Recoupable Advance","Marketing Program",
2015-2016,P3,"Metropole Films Distribution",Montreal,Quebec,Canada,"Avril et un monde truqu�",French,Action/Adventure,2015-10-29,70000.00,70000.00,"Recoupable Advance","Marketing Program",
2015-2016,P3,"2033161 Ontario Limited d.b.a. Films We Like",Toronto,Ontario,Canada,"Al Purdy was Here",English,Documentary,2015-10-29,16500.00,16500.00,"Recoupable Advance","Marketing Program",
2015-2016,P3,"OBJECTIF 9 INC.",Montreal,Quebec,Canada,"Portfolio 2015-2016 OBJECTIF 9 INC.",French,"Historical Drama",2015-10-30,15000.00,15000.00,"Recoupable Advance","Development Program",
2015-2016,P3,"Productions Avenida inc.",Montreal,Quebec,Canada,"Portfolio 2015-2016 Productions Avenida inc.",French,Action/Adventure,2015-10-30,15000.00,15000.00,"Recoupable Advance","Development Program",
2015-2016,P3,"Les Films de La Mancha Inc.",Montreal,Quebec,Canada,"Portfolio 2015-2016 Les Films de La Mancha Inc.",English,Sci.fi./Fantasy/Tale,2015-11-02,15000.00,15000.00,"Recoupable Advance","Development Program",
2015-2016,P3,"Mongrel Media Inc.",Toronto,Ontario,Canada,Fall,English,"Drama (Film)",2015-11-04,15942.00,16995.00,"Recoupable Advance","Marketing Program","Amended contract signed  09-MAR-15"
2015-2016,P3,"Film Sodom Inc.",Outremont,Quebec,Canada,Anna,French,"Drama (Film)",2015-11-04,4183.00,4183.00,Contribution,"International Marketing Program",
2015-2016,P3,"9174-5018 Qu�bec inc.",Montreal,Quebec,Canada,"Probl�me d'infiltration (Le)",French,"Drama (Film)",2015-11-04,400000.00,400000.00,Investment,"Production Program",
2015-2016,P3,"Rob Heydon Holdings Inc.","Stoney Creek",Ontario,Canada,"Portfolio 2015-2016 Rob Heydon Holdings Inc.",English,Action/Adventure,2015-11-05,15000.00,15000.00,"Recoupable Advance","Development Program",
2015-2016,P3,"Amerique Film Inc.",Montreal,Quebec,Canada,"Portfolio 2015-2016 Amerique Film Inc.",French,Comedy,2015-11-05,15000.00,15000.00,"Recoupable Advance","Development Program",
2015-2016,P3,"9251-5980 Qu�bec Inc.",Montreal,Quebec,Canada,"F�lix et Meira",French,"Drama (Film)",2015-11-05,100000.00,100000.00,Contribution,"International Marketing Program",
2015-2016,P3,"Considering Love Manitoba Inc.",Winnipeg,Manitoba,Canada,"Considering Love and Other Magic",English,"Drama (Film)",2015-11-05,300000.00,300000.00,Investment,"Production Program",
2015-2016,P3,"Mongrel Media Inc.",Toronto,Ontario,Canada,"Still Mine",English,"Drama (Film)",2015-11-09,520593.00,50000.00,"Recoupable Advance","Marketing Program","Amended contract signed  05-FEB-13"
2015-2016,P3,"Honalee Productions Inc.",Vancouver,"British Columbia",Canada,"Portfolio 2015-2016 Honalee Productions Inc.",English,"Drama (Film)",2015-11-09,30000.00,60000.00,"Recoupable Advance","Development Program","Amended contract signed  09-NOV-15"
2015-2016,P3,"Honalee Productions Inc.",Vancouver,"British Columbia",Canada,"Portfolio 2015-2016 Honalee Productions Inc.",English,"Historical Drama",2015-11-09,60000.00,60000.00,"Recoupable Advance","Development Program","Amended contract signed  09-NOV-15"
2015-2016,P3,"Productions Pays Inc.",Montreal,Quebec,Canada,Pays,French,"Drama (Film)",2015-11-09,1200000.00,1200000.00,"Recoupable Advance","Production Program",
2015-2016,P3,"Cineast Screen Development Limited",Halifax,"Nova Scotia",Canada,"Portfolio 2015-2016 Cineast Screen Development Limited",English,Comedy,2015-11-09,15000.00,15000.00,"Recoupable Advance","Development Program",
2015-2016,P3,"Production Deux nuits Inc.",Montreal,Quebec,Canada,RUNNING,French,"Drama (Film)",2015-11-09,500000.00,500000.00,"Recoupable Advance","Production Program",
2015-2016,P3,"Carpediem Film & TV Inc.",Montreal,Quebec,Canada,"Portfolio 2015-2016 CarpeDiem Film & TV Inc.",English,Comedy,2015-11-09,20000.00,20000.00,"Recoupable Advance","Development Program",
2015-2016,P3,"Precious Snowflake Productions Inc.",Toronto,Ontario,Canada,"Portfolio 2015-2016 Precious Snowflake Productions Inc.",English,Comedy,2015-11-09,15000.00,15000.00,"Recoupable Advance","Development Program",
2015-2016,P3,"EMAfilms Inc.",Montreal,Quebec,Canada,"Portfolio 2015-2016 EMA FILMS INC.",English,Action/Adventure,2015-11-10,15000.00,60000.00,"Recoupable Advance","Development Program","Amended contract signed  10-NOV-15"
2015-2016,P3,"EMAfilms Inc.",Montreal,Quebec,Canada,"Portfolio 2015-2016 EMA FILMS INC.",English,"Drama (Film)",2015-11-10,45000.00,60000.00,"Recoupable Advance","Development Program","Amended contract signed  10-NOV-15"
2015-2016,P3,"EMAfilms Inc.",Montreal,Quebec,Canada,"Portfolio 2015-2016 EMA FILMS INC.",English,Sci.fi./Fantasy/Tale,2015-11-10,60000.00,60000.00,"Recoupable Advance","Development Program","Amended contract signed  10-NOV-15"
2015-2016,P3,"Greater Vancouver International Film Festival Society",Vancouver,"British Columbia",Canada,"Vancouver International Film Festival (2015) ",English,N/A,2015-11-10,242172.00,242172.00,Contribution,"Promotion Program",
2015-2016,P3,"9219-3010 Qu�bec Inc.",Montreal,Quebec,Canada,"Portfolio 2015-2016 9219-3010 Qu�bec Inc.",French,"Romantic Comedy",2015-11-12,20000.00,20000.00,"Recoupable Advance","Development Program",
2015-2016,P3,"Entertainment One Films Canada Inc.",Toronto,Ontario,Canada,"Maps to the Stars",English,"Drama (Film)",2015-11-13,751548.00,762794.00,"Recoupable Advance","Marketing Program","Amended contract signed  02-APR-15"
2015-2016,P3,"Aetios Productions Inc.",Saint-Sauveur,Quebec,Canada,"Portfolio 2015-2016 Aetios Productions Inc.",French,"Drama (Film)",2015-11-13,15000.00,15000.00,"Recoupable Advance","Development Program",
2015-2016,P3,"Chaos A Film Company Inc.",Calgary,Alberta,Canada,"Portfolio 2015-2016 Chaos a film company inc.",English,"Historical Drama",2015-11-13,15000.00,15000.00,"Recoupable Advance","Development Program",
2015-2016,P3,"3090-5178 Quebec Inc. f/a/s Palomar",Montreal,Quebec,Canada,"Portfolio 2015-2016 3090-5178 Quebec Inc. f/a/s Palomar",English,"Drama (Film)",2015-11-14,15000.00,15000.00,"Recoupable Advance","Development Program",
2015-2016,P3,"Howie Role Productions Inc.",Vancouver,"British Columbia",Canada,"Portfolio 2015-2016 Howie Role Productions Inc.",English,Comedy,2015-11-14,15000.00,15000.00,"Recoupable Advance","Development Program",
2015-2016,P3,"GROUPE PVP INC.",Matane,Quebec,Canada,"Portfolio 2015-2016 GROUPE PVP INC.",French,"Drama (Film)",2015-11-16,19622.00,19622.00,"Recoupable Advance","Development Program",
2015-2016,P3,"Films 53/12 Inc.",Montreal,Quebec,Canada,"Portfolio 2015-2016 Films 53/12 Inc.",French,"Drama (Film)",2015-11-16,20000.00,20000.00,"Recoupable Advance","Development Program",
2015-2016,P3,"Christal Films Productions inc.",Montreal,Quebec,Canada,"Portfolio 2015-2016 Christal Films Productions Inc. - 2",French,Comedy,2015-11-17,38000.00,200000.00,"Recoupable Advance","Development Program","Amended contract signed  17-NOV-15"
2015-2016,P3,"Christal Films Productions inc.",Montreal,Quebec,Canada,"Portfolio 2015-2016 Christal Films Productions Inc. - 2",French,"Romantic Comedy",2015-11-17,83000.00,200000.00,"Recoupable Advance","Development Program","Amended contract signed  17-NOV-15"
2015-2016,P3,"Christal Films Productions inc.",Montreal,Quebec,Canada,"Portfolio 2015-2016 Christal Films Productions Inc. - 2",French,"Historical Drama",2015-11-17,132000.00,200000.00,"Recoupable Advance","Development Program","Amended contract signed  17-NOV-15"
2015-2016,P3,"Christal Films Productions inc.",Montreal,Quebec,Canada,"Portfolio 2015-2016 Christal Films Productions Inc. - 2",French,"Historical Drama",2015-11-17,168000.00,200000.00,"Recoupable Advance","Development Program","Amended contract signed  17-NOV-15"
2015-2016,P3,"Christal Films Productions inc.",Montreal,Quebec,Canada,"Portfolio 2015-2016 Christal Films Productions Inc. - 2",French,Sci.fi./Fantasy/Tale,2015-11-17,200000.00,200000.00,"Recoupable Advance","Development Program","Amended contract signed  17-NOV-15"
2015-2016,P3,"2370316 Ontario Inc.",Toronto,Ontario,Canada,"Portfolio 2015-2016 2370316 Ontario Inc.",English,"Drama (Film)",2015-11-17,20000.00,20000.00,"Recoupable Advance","Development Program",
2015-2016,P3,"9281-8269 Qu�bec Inc.",St-Bruno,Quebec,Canada,"Portfolio 2015-2016 9281-8269 Qu�bec Inc.",French,"Romantic Comedy",2015-11-17,15000.00,15000.00,"Recoupable Advance","Development Program",
2015-2016,P3,"Victoria Independent Film and Video Festival",Victoria,"British Columbia",Canada,"Victoria Film Festival (2016)",English,N/A,2015-11-17,32445.00,32445.00,Contribution,"Promotion Program",
2015-2016,P3,"Malefic Films Inc.",Halifax,"Nova Scotia",Canada,"Child Remains (The)",English,Horror,2015-11-17,350000.00,350000.00,Investment,"Production Program",
2015-2016,P3,"Funfilm Distribution Inc.",Montreal,Quebec,Canada,"Chorus (aka Forget me not)",French,"Drama (Film)",2015-11-18,63138.00,65000.00,"Recoupable Advance","Marketing Program","Amended contract signed  29-JAN-15"
2015-2016,P3,"Resonance Films Inc. ",Vancouver,"British Columbia",Canada,"Portfolio 2015-2016 Resonance Films Inc.",English,"Romantic Comedy",2015-11-18,15000.00,15000.00,"Recoupable Advance","Development Program",
2015-2016,P3,"Pitchblack Pictures Inc.",Burnaby,"British Columbia",Canada,"Portfolio 2015-2016 Pitchblack Pictures Inc.",English,Comedy,2015-11-19,15000.00,45000.00,"Recoupable Advance","Development Program","Amended contract signed  19-NOV-15"
2015-2016,P3,"Pitchblack Pictures Inc.",Burnaby,"British Columbia",Canada,"Portfolio 2015-2016 Pitchblack Pictures Inc.",English,"Drama (Film)",2015-11-19,45000.00,45000.00,"Recoupable Advance","Development Program","Amended contract signed  19-NOV-15"
2015-2016,P3,"Zoofilms Inc.",Mansonville,Quebec,Canada,"Portfolio 2015-2016 Zoofilms Inc.",English,Action/Adventure,2015-11-19,15000.00,55000.00,"Recoupable Advance","Development Program","Amended contract signed  19-NOV-15"
2015-2016,P3,"Zoofilms Inc.",Mansonville,Quebec,Canada,"Portfolio 2015-2016 Zoofilms Inc.",French,Action/Adventure,2015-11-19,40000.00,55000.00,"Recoupable Advance","Development Program","Amended contract signed  19-NOV-15"
2015-2016,P3,"Zoofilms Inc.",Mansonville,Quebec,Canada,"Portfolio 2015-2016 Zoofilms Inc.",French,Musical,2015-11-19,55000.00,55000.00,"Recoupable Advance","Development Program","Amended contract signed  19-NOV-15"
2015-2016,P3,"Sohkeciwan Productions Ltd.","North Vancouver","British Columbia",Canada,"River of Silence",English,"Drama (Film)",2015-11-19,120000.00,120000.00,Contribution,"Micro-Budget Production Program",
2015-2016,P3,"Visions Ouest Productions",Vancouver,"British Columbia",Canada,"Rendez-vous du cin�ma qu�b�cois et francophone de Vancouver 2016 (22e)",French,N/A,2015-11-19,8132.00,8132.00,Contribution,"Promotion Program",
2015-2016,P3,"Atlantic Film Festival Association",Halifax,"Nova Scotia",Canada,FIAV_2015/2016,English,N/A,2015-11-19,26963.00,26963.00,Contribution,"Promotion Program",
2015-2016,P3,"Story Engine Pictures Inc.",Halifax,"Nova Scotia",Canada,"Portfolio 2015-2016 Story Engine Pictures Inc.",English,Comedy,2015-11-20,15000.00,15000.00,"Recoupable Advance","Development Program",
2015-2016,P3,"Yukon Film Society",Whitehorse,Yukon,Canada,"Available Light Film Festival 2016",English,N/A,2015-11-20,8813.00,8813.00,Contribution,"Promotion Program",
2015-2016,P3,"Melenny Productions Inc.",Montreal,Quebec,Canada,"Portfolio 2015-2016 Melenny Productions Inc.",English,Comedy,2015-11-23,50000.00,50000.00,"Recoupable Advance","Development Program",
2015-2016,P3,"Rhombus Hyena Inc.",Toronto,Ontario,Canada,"Hyena Road",English,"Drama (Film)",2015-11-24,6000000.00,3977948.00,Investment,"Production Program","Amended contract signed  20-MAR-13"
2015-2016,P3,"Microscope inc.",Montreal,Quebec,Canada,"Portfolio 2015-2016 Microscope Inc.",English,Comedy,2015-11-24,25000.00,200000.00,"Recoupable Advance","Development Program","Amended contract signed  24-NOV-15"
2015-2016,P3,"Microscope inc.",Montreal,Quebec,Canada,"Portfolio 2015-2016 Microscope Inc.",French,Comedy,2015-11-24,115000.00,200000.00,"Recoupable Advance","Development Program","Amended contract signed  24-NOV-15"
2015-2016,P3,"Microscope inc.",Montreal,Quebec,Canada,"Portfolio 2015-2016 Microscope Inc.",English,"Drama (Film)",2015-11-24,200000.00,200000.00,"Recoupable Advance","Development Program","Amended contract signed  24-NOV-15"
2015-2016,P3,"Elevation Pictures Corp.",Toronto,Ontario,Canada,Room,English,"Drama (Film)",2015-11-24,1518881.00,1518881.00,"Recoupable Advance","Marketing Program",
2015-2016,P3,"9322-5019 Qu�bec Inc.",Montreal,Quebec,Canada,"Memory Is Our Homeland",English,Documentary,2015-11-24,120000.00,120000.00,Contribution,"Micro-Budget Production Program",
2015-2016,P3,"Cin�maginaire inc.",Montreal,Quebec,Canada,"Portfolio 2015-2016 Cin�maginaire Inc.",French,Comedy,2015-11-25,75000.00,200000.00,"Recoupable Advance","Development Program","Amended contract signed  25-NOV-15"
2015-2016,P3,"Cin�maginaire inc.",Montreal,Quebec,Canada,"Portfolio 2015-2016 Cin�maginaire Inc.",French,"Drama (Film)",2015-11-25,200000.00,200000.00,"Recoupable Advance","Development Program","Amended contract signed  25-NOV-15"
2015-2016,P3,"David Gross Productions Inc.",Toronto,Ontario,Canada,"Portfolio 2015-2016 David Gross Productions Inc.",English,"Drama (Film)",2015-11-25,80000.00,80000.00,"Recoupable Advance","Development Program",
2015-2016,P3,"Reel to Real: A Celebration Of Moving Images For Youth Society",Vancouver,"British Columbia",Canada,"Reel 2 Real International Film Festival for Youth 2016",English,N/A,2015-11-25,7528.00,7528.00,Contribution,"Promotion Program",
2015-2016,P3,"FU2 Productions Ltd.",Calgary,Alberta,Canada,"Fubar II",English,Comedy,2015-11-26,2117355.00,1900000.00,"Investment, Recoupable Advance","Production Program","Amended contract signed  22-OCT-09"
2015-2016,P3,"Khoya Films Inc.",Sarnia,Ontario,Canada,Khoya,English,"Drama (Film)",2015-11-26,1644.00,1644.00,Contribution,"International Marketing Program",
2015-2016,P3,"Attraction Images inc.",Montreal,Quebec,Canada,"Portfolio 2015-2016 Attraction Images inc.",French,"Romantic Comedy",2015-12-02,83203.00,125000.00,"Recoupable Advance","Development Program","Amended contract signed  02-DEC-15"
2015-2016,P3,"Attraction Images inc.",Montreal,Quebec,Canada,"Portfolio 2015-2016 Attraction Images inc.",French,"Drama (Film)",2015-12-02,125000.00,125000.00,"Recoupable Advance","Development Program","Amended contract signed  02-DEC-15"
2015-2016,P3,"Films Christal, s.e.c.(Les), agissant par l'interm�diaire de son commandit�, Les Films Christal Inc",Montreal,Quebec,Canada,"Guibord s'en va-t-en guerre",French,Comedy,2015-12-02,473428.00,473428.00,"Recoupable Advance","Marketing Program",
2015-2016,P3,"Films S�ville Inc. (Les) / Seville Pictures Inc.",Montreal,Quebec,Canada,Anna,French,"Drama (Film)",2015-12-02,56866.00,56866.00,"Recoupable Advance","Marketing Program",
2015-2016,P3,"Productions Caramel Film Inc.",Montreal,Quebec,Canada,"Portfolio 2015-2016 Productions Caramel Film Inc.",French,Action/Adventure,2015-12-03,16310.00,215000.00,"Recoupable Advance","Development Program","Amended contract signed  03-DEC-15"
2015-2016,P3,"Productions Caramel Film Inc.",Montreal,Quebec,Canada,"Portfolio 2015-2016 Productions Caramel Film Inc.",English,Comedy,2015-12-03,128403.00,215000.00,"Recoupable Advance","Development Program","Amended contract signed  03-DEC-15"
2015-2016,P3,"Productions Caramel Film Inc.",Montreal,Quebec,Canada,"Portfolio 2015-2016 Productions Caramel Film Inc.",French,Comedy,2015-12-03,152584.00,215000.00,"Recoupable Advance","Development Program","Amended contract signed  03-DEC-15"
2015-2016,P3,"Productions Caramel Film Inc.",Montreal,Quebec,Canada,"Portfolio 2015-2016 Productions Caramel Film Inc.",English,"Drama (Film)",2015-12-03,200000.00,215000.00,"Recoupable Advance","Development Program","Amended contract signed  03-DEC-15"
2015-2016,P3,"Productions Caramel Film Inc.",Montreal,Quebec,Canada,"Portfolio 2015-2016 Productions Caramel Film Inc.",French,"Drama (Film)",2015-12-03,215000.00,215000.00,"Recoupable Advance","Development Program","Amended contract signed  03-DEC-15"
2015-2016,P3,"Cave Painting Pictures Inc.",Toronto,Ontario,Canada,"Portfolio 2015-2016 Cave Painting Pictures Inc.",English,Horror,2015-12-03,15000.00,15000.00,"Recoupable Advance","Development Program",
2015-2016,P3,"Rock and Gold Productions Inc.",Regina,Saskatchewan,Canada,"Land of Rock and Gold (The)",English,"Drama (Film)",2015-12-04,120000.00,120000.00,Contribution,"Micro-Budget Production Program",
2015-2016,P3,"Films S�ville Inc. (Les) / Seville Pictures Inc.",Montreal,Quebec,Canada,"Elephant Song (The)",English,"Drama (Film)",2015-12-07,246066.00,253722.00,"Recoupable Advance","Marketing Program","Amended contract signed  08-APR-15"
2015-2016,P3,"Films S�ville Inc. (Les) / Seville Pictures Inc.",Montreal,Quebec,Canada,"LOUPS (LES)",French,"Drama (Film)",2015-12-07,84950.00,91636.00,"Recoupable Advance","Marketing Program","Amended contract signed  18-MAR-15"
2015-2016,P3,"A71 Entertainment Inc.",Toronto,Ontario,Canada,"People Hold On",English,"Drama (Film)",2015-12-07,33000.00,33000.00,"Recoupable Advance","Marketing Program",
2015-2016,P3,"P�riph�ria Productions Inc.",Montreal,Quebec,Canada,"Rouge gorge",French,Documentary,2015-12-07,15000.00,0.00,"Recoupable Advance",Mini-treaties,
2015-2016,P3,"Lumino Pictures Inc.",Toronto,Ontario,Canada,"Portfolio 2015-2016 Lumino Pictures Inc.",English,Horror,2015-12-07,15000.00,15000.00,"Recoupable Advance","Development Program",
2015-2016,P3,"The Documentary Media Society",Vancouver,"British Columbia",Canada,"DOXA Documentary Film Festival (2016)",English,N/A,2015-12-07,10815.00,10815.00,Contribution,"Promotion Program",
2015-2016,P3,"Inferno Pictures Inc.",Winnipeg,Manitoba,Canada,"Portfolio 2015-2016 Inferno Pictures Inc.",English,"Drama (Film)",2015-12-08,60000.00,60000.00,"Recoupable Advance","Development Program",
2015-2016,P3,"Films S�ville Inc. (Les) / Seville Pictures Inc.",Montreal,Quebec,Canada,"�tres chers (Les)",French,"Drama (Film)",2015-12-08,97688.00,97688.00,"Recoupable Advance","Marketing Program",
2015-2016,P3,"Mongrel Media Inc.",Toronto,Ontario,Canada,Brooklyn,English,"Drama (Film)",2015-12-09,1428000.00,1428000.00,"Recoupable Advance","Marketing Program",
2015-2016,P3,"Echo Media Inc.",Montreal,Quebec,Canada,"Portfolio 2015-2016 Echo Media Inc.",French,Comedy,2015-12-09,15000.00,15000.00,"Recoupable Advance","Development Program",
2015-2016,P3,"Enigmatico Films Inc.",Toronto,Ontario,Canada,"Portfolio 2015-2016 Enigmatico Films Inc.",English,Mystery/Crime/Police,2015-12-10,15000.00,15000.00,"Recoupable Advance","Development Program",
2015-2016,P3,"Mongrel Media Inc.",Toronto,Ontario,Canada,"The Forbidden Room",English,"Drama (Film)",2015-12-10,3591.00,3591.00,Contribution,"International Marketing Program",
2015-2016,P3,"Slow Motion Food Film Fest Society",Wolfville,"Nova Scotia",Canada,"Devour! The Food Film Fest",English,N/A,2015-12-10,6000.00,6000.00,Contribution,"Promotion Program",
2015-2016,P3,"Don't Talk to Irene Inc.",Hamilton,Ontario,Canada,"Don't Talk To Irene",English,Comedy,2015-12-10,350000.00,350000.00,Investment,"Production Program",
2015-2016,P3,"Buffalo Gal Pictures Inc.",Winnipeg,Manitoba,Canada,"Portfolio 2015-2016 Buffalo Gal Pictures Inc.",English,"Drama (Film)",2015-12-11,15000.00,45000.00,"Recoupable Advance","Development Program","Amended contract signed  11-DEC-15"
2015-2016,P3,"Buffalo Gal Pictures Inc.",Winnipeg,Manitoba,Canada,"Portfolio 2015-2016 Buffalo Gal Pictures Inc.",English,"Historical Drama",2015-12-11,30000.00,45000.00,"Recoupable Advance","Development Program","Amended contract signed  11-DEC-15"
2015-2016,P3,"Buffalo Gal Pictures Inc.",Winnipeg,Manitoba,Canada,"Portfolio 2015-2016 Buffalo Gal Pictures Inc.",English,Horror,2015-12-11,45000.00,45000.00,"Recoupable Advance","Development Program","Amended contract signed  11-DEC-15"
2015-2016,P3,"Funco Ltd.",Calgary,Alberta,Canada,"Portfolio 2015-2016 Funco Ltd.",English,Comedy,2015-12-11,40000.00,40000.00,"Recoupable Advance","Development Program",
2015-2016,P3,"Entertainment One Films Canada Inc.",Toronto,Ontario,Canada,"Teen Lust",English,Comedy,2015-12-13,48836.00,48836.00,"Recoupable Advance","Marketing Program",
2015-2016,P3,"First Take Entertainment Ltd.",Oakville,Ontario,Canada,"Portfolio 2015-2016 First Take Entertainment Ltd.",English,Comedy,2015-12-14,42700.00,95000.00,"Recoupable Advance","Development Program","Amended contract signed  14-DEC-15"
2015-2016,P3,"First Take Entertainment Ltd.",Oakville,Ontario,Canada,"Portfolio 2015-2016 First Take Entertainment Ltd.",English,"Drama (Film)",2015-12-14,95000.00,95000.00,"Recoupable Advance","Development Program","Amended contract signed  14-DEC-15"
2015-2016,P3,"Bunk 11 Pictures Inc. ",Ottawa,Ontario,Canada,"Portfolio 2015-2016 Bunk 11 Pictures Inc.",English,Action/Adventure,2015-12-14,15000.00,30000.00,"Recoupable Advance","Development Program","Amended contract signed  14-DEC-15"
2015-2016,P3,"Bunk 11 Pictures Inc. ",Ottawa,Ontario,Canada,"Portfolio 2015-2016 Bunk 11 Pictures Inc.",English,Comedy,2015-12-14,30000.00,30000.00,"Recoupable Advance","Development Program","Amended contract signed  14-DEC-15"
2015-2016,P3,"Whizbang Films Inc.",Toronto,Ontario,Canada,"Portfolio 2015-2016 Whizbang Films Inc.",English,Comedy,2015-12-14,15000.00,40000.00,"Recoupable Advance","Development Program","Amended contract signed  14-DEC-15"
2015-2016,P3,"Whizbang Films Inc.",Toronto,Ontario,Canada,"Portfolio 2015-2016 Whizbang Films Inc.",English,Mystery/Crime/Police,2015-12-14,40000.00,40000.00,"Recoupable Advance","Development Program","Amended contract signed  14-DEC-15"
2015-2016,P3,"Karma Film Inc.",Saskatoon,Saskatchewan,Canada,"Portfolio 2015-2016 Karma Film Inc.",English,Sci.fi./Fantasy/Tale,2015-12-14,15000.00,30000.00,"Recoupable Advance","Development Program","Amended contract signed  14-DEC-15"
2015-2016,P3,"Karma Film Inc.",Saskatoon,Saskatchewan,Canada,"Portfolio 2015-2016 Karma Film Inc.",English,Thriller,2015-12-14,30000.00,30000.00,"Recoupable Advance","Development Program","Amended contract signed  14-DEC-15"
2015-2016,P3,"Bad Astronaut Inc.",Halifax,"Nova Scotia",Canada,"Portfolio 2015-2016 Bad Astronaut Inc.",English,"Historical Drama",2015-12-14,15000.00,30000.00,"Recoupable Advance","Development Program","Amended contract signed  14-DEC-15"
2015-2016,P3,"Bad Astronaut Inc.",Halifax,"Nova Scotia",Canada,"Portfolio 2015-2016 Bad Astronaut Inc.",English,Thriller,2015-12-14,30000.00,30000.00,"Recoupable Advance","Development Program","Amended contract signed  14-DEC-15"
2015-2016,P3,"Sienna Films Inc.",Toronto,Ontario,Canada,"Portfolio 2015-2016 Sienna Films Inc.",English,"Romantic Comedy",2015-12-14,15000.00,55000.00,"Recoupable Advance","Development Program","Amended contract signed  14-DEC-15"
2015-2016,P3,"Sienna Films Inc.",Toronto,Ontario,Canada,"Portfolio 2015-2016 Sienna Films Inc.",English,"Drama (Film)",2015-12-14,30000.00,55000.00,"Recoupable Advance","Development Program","Amended contract signed  14-DEC-15"
2015-2016,P3,"Sienna Films Inc.",Toronto,Ontario,Canada,"Portfolio 2015-2016 Sienna Films Inc.",English,Mystery/Crime/Police,2015-12-14,55000.00,55000.00,"Recoupable Advance","Development Program","Amended contract signed  14-DEC-15"
2015-2016,P3,"Metropole Films Distribution",Montreal,Quebec,Canada,Brooklyn,English,"Drama (Film)",2015-12-14,299904.00,299904.00,"Recoupable Advance","Marketing Program",
2015-2016,P3,"Film Works Ltd. (The) ",Toronto,Ontario,Canada,"Portfolio 2015-2016 Film Works Ltd. (The)",English,Western,2015-12-14,30000.00,30000.00,"Recoupable Advance","Development Program",
2015-2016,P3,"Reality Distortion Field Inc.",Vancouver,"British Columbia",Canada,"Portfolio 2015-2016 Reality Distortion Field Inc.",English,Sci.fi./Fantasy/Tale,2015-12-14,30000.00,30000.00,"Recoupable Advance","Development Program",
2015-2016,P3,"V�locit� International inc.",Quebec,Quebec,Canada,"Portfolio 2015-2016 V�locit� International inc.",French,"Drama (Film)",2015-12-14,30000.00,30000.00,"Recoupable Advance","Development Program",
2015-2016,P3,"Films Vision 4 Inc.",Montreal,Quebec,Canada,"Portfolio 2015-2016 Films Vision 4 Inc.",French,"Romantic Comedy",2015-12-15,15000.00,65000.00,"Recoupable Advance","Development Program","Amended contract signed  15-DEC-15"
2015-2016,P3,"Films Vision 4 Inc.",Montreal,Quebec,Canada,"Portfolio 2015-2016 Films Vision 4 Inc.",English,"Drama (Film)",2015-12-15,48000.00,65000.00,"Recoupable Advance","Development Program","Amended contract signed  15-DEC-15"
2015-2016,P3,"Films Vision 4 Inc.",Montreal,Quebec,Canada,"Portfolio 2015-2016 Films Vision 4 Inc.",French,"Drama (Film)",2015-12-15,65000.00,65000.00,"Recoupable Advance","Development Program","Amended contract signed  15-DEC-15"
2015-2016,P3,"�a Tourne Productions Ltee.","Ste-Anne du Bocage","New Brunswick",Canada,"Portfolio 2015-2016 �a Tourne Productions Ltee.",French,"Drama (Film)",2015-12-15,15000.00,15000.00,"Recoupable Advance","Development Program",
2015-2016,P3,"Films Christal, s.e.c.(Les), agissant par l'interm�diaire de son commandit�, Les Films Christal Inc",Montreal,Quebec,Canada,"Affam�s (Les)",French,Horror,2015-12-15,20000.00,20000.00,"Recoupable Advance","Marketing Program",
2015-2016,P3,"Cardinal Film Inc.",Montreal,Quebec,Canada,"Portfolio 2015-2016 Film Cardinal Inc./Cardinal Film Inc.",English,Comedy,2015-12-15,15000.00,15000.00,"Recoupable Advance","Development Program",
2015-2016,P3,"Production Deux nuits Inc.",Montreal,Quebec,Canada,"Le r�gne de la beaut� (aka Deux Nuits/Two Nights)",French,"Drama (Film)",2015-12-16,3374650.00,3400000.00,"Investment, Recoupable Advance","Production Program","Amended contract signed  02-OCT-12"
2015-2016,P3,"8439222 Canada Inc. (faisant affaires sous le nom de SMT Features)","Saint-F�licien ",Quebec,Canada,"Portfolio 2015-2016 8439222 Canada Inc. (faisant affaires sous le nom de SMT Features)",French,Thriller,2015-12-16,15000.00,15000.00,"Recoupable Advance","Development Program",
2015-2016,P3,"Pier 21 Films Ltd.",Toronto,Ontario,Canada,"Portfolio 2015-2016 Pier 21 Films Ltd.",English,Comedy,2015-12-16,15000.00,15000.00,"Recoupable Advance","Development Program",
2015-2016,P3,"Kiss & Cry Production Inc.","North York",Ontario,Canada,"Kiss and Cry",English,"Drama (Film)",2015-12-17,285000.00,285000.00,Investment,"Production Program",
2015-2016,P3,"Films S�ville Inc. (Les) / Seville Pictures Inc.",Montreal,Quebec,Canada,N.O.I.R.,French,"Drama (Film)",2015-12-18,44721.00,56000.00,"Recoupable Advance","Marketing Program","Amended contract signed  19-MAR-15"
2015-2016,P3,"Films Christal, s.e.c.(Les), agissant par l'interm�diaire de son commandit�, Les Films Christal Inc",Montreal,Quebec,Canada,CORBO,French,"Historical Drama",2015-12-18,107589.00,116630.00,"Recoupable Advance","Marketing Program","Amended contract signed  26-MAY-15"
2015-2016,P3,"Gestion Id�acom International Inc. (9085-7525 Qu�bec Inc.) ",Montreal,Quebec,Canada,"Ile aux Mammouths (L') (a.k.a. L'or de l'oc�an blanc)",French,Documentary,2015-12-18,8500.00,0.00,"Recoupable Advance",Mini-treaties,
2015-2016,P3,"The Dot Film Company Inc.","Wasaga Beach",Ontario,Canada,"Portfolio 2015-2016 The Dot Film Company Inc.",English,"Drama (Film)",2015-12-18,15000.00,15000.00,"Recoupable Advance","Development Program",
2015-2016,P3,"Couzin Films Inc.",Montreal,Quebec,Canada,"Portfolio 2015-2016 Couzin Films Inc.",English,Action/Adventure,2015-12-18,15000.00,15000.00,"Recoupable Advance","Development Program",
2015-2016,P3,"National Screen Institute - Canada",Winnipeg,Manitoba,Canada,"NSI Training Programs Fiscal 2015-16",English,N/A,2015-12-21,229500.00,229500.00,Contribution,"Promotion Program",
2015-2016,P3,"2412658 Ontario Inc.",Toronto,Ontario,Canada,"Portfolio 2015-2016 2412658 Ontario Inc.",English,Comedy,2015-12-22,15000.00,15000.00,"Recoupable Advance","Development Program",
2015-2016,P3,"Darius Films Inc.",Toronto,Ontario,Canada,"Portfolio 2015-2016 Darius Films Inc.",English,"Drama (Film)",2015-12-23,30000.00,60000.00,"Recoupable Advance","Development Program","Amended contract signed  23-DEC-15"
2015-2016,P3,"Darius Films Inc.",Toronto,Ontario,Canada,"Portfolio 2015-2016 Darius Films Inc.",English,Horror,2015-12-23,45000.00,60000.00,"Recoupable Advance","Development Program","Amended contract signed  23-DEC-15"
2015-2016,P3,"Darius Films Inc.",Toronto,Ontario,Canada,"Portfolio 2015-2016 Darius Films Inc.",English,Thriller,2015-12-23,60000.00,60000.00,"Recoupable Advance","Development Program","Amended contract signed  23-DEC-15"
2015-2016,P3,"Shaftesbury Darken Inc.",Toronto,Ontario,Canada,Darken,English,Sci.fi./Fantasy/Tale,2015-12-23,475000.00,475000.00,"Investment, Recoupable Advance","Production Program",
2015-2016,P3,"2479529 Ontario Inc.",Toronto,Ontario,Canada,"Sadie's Last Day on Earth",English,Comedy,2015-12-23,196000.00,196000.00,"Investment, Recoupable Advance","Production Program",
2015-2016,P4,"Vues d'Afrique",Montreal,Quebec,Canada,"Festival international de cin�ma Vues d'Afrique",French,N/A,2015-12-23,17859.00,17859.00,Contribution,"Promotion Program",
2015-2016,P4,"Terres en vues",Montreal,Quebec,Canada,"Festival du film et de la vid�o autochtone de Montr�al 2016",French,N/A,2015-12-23,16166.00,16166.00,Contribution,"Promotion Program",
2015-2016,P4,"Festival International du Film sur l'Art",Montreal,Quebec,Canada,"Festival International du Film sur l'Art 2016",French,N/A,2015-12-23,34608.00,34608.00,Contribution,"Promotion Program",
2015-2016,P4,"A71 Productions Inc.",Toronto,Ontario,Canada,"Portfolio 2015-2016 A71 Productions Inc.",English,Comedy,2016-01-04,15000.00,30000.00,"Recoupable Advance","Development Program","Amended contract signed  04-JAN-16"
2015-2016,P4,"A71 Productions Inc.",Toronto,Ontario,Canada,"Portfolio 2015-2016 A71 Productions Inc.",English,"Drama (Film)",2016-01-04,30000.00,30000.00,"Recoupable Advance","Development Program","Amended contract signed  04-JAN-16"
2015-2016,P4,"9317-3946 Qu�bec inc.",Montreal,Quebec,Canada,"Secret d'hiver",French,"Drama (Film)",2016-01-06,0.00,80000.00,"Recoupable Advance",Mini-treaties,"Amended contract signed  01-MAY-16"
2015-2016,P4,"Shadow Shows Incorporated",Toronto,Ontario,Canada,"Portfolio 2015-2016 Shadow Shows Incorporated",English,"Drama (Film)",2016-01-06,20000.00,35000.00,"Recoupable Advance","Development Program","Amended contract signed  06-JAN-16"
2015-2016,P4,"Shadow Shows Incorporated",Toronto,Ontario,Canada,"Portfolio 2015-2016 Shadow Shows Incorporated",French,"Drama (Film)",2016-01-06,35000.00,35000.00,"Recoupable Advance","Development Program","Amended contract signed  06-JAN-16"
2015-2016,P4,"Vortex Comics Incorporated",Toronto,Ontario,Canada,"Portfolio 2015-2016 Vortex Comics Incorporated",English,Thriller,2016-01-06,15000.00,15000.00,"Recoupable Advance","Development Program",
2015-2016,P4,"Connections Productions Inc.",Bedford,"Nova Scotia",Canada,"Portfolio 2015-2016 Connections Productions Inc.",French,Sci.fi./Fantasy/Tale,2016-01-06,15000.00,15000.00,"Recoupable Advance","Development Program",
2015-2016,P4,"The Film Farm Inc.",Toronto,Ontario,Canada,"Portfolio 2015-2016 The Film Farm Inc.",English,"Drama (Film)",2016-01-07,45000.00,45000.00,"Recoupable Advance","Development Program",
2015-2016,P4,"Films Christal, s.e.c.(Les), agissant par l'interm�diaire de son commandit�, Les Films Christal Inc",Montreal,Quebec,Canada,"Passion d'Augustine (La)",French,"Drama (Film)",2016-01-08,301463.00,305687.00,"Recoupable Advance","Marketing Program","Amended contract signed  30-MAR-15"
2015-2016,P4,"Front des r�alisateurs ind�pendants du Canada (FRIC)",Ottawa,Ontario,Canada,"Programme de promotion et d�veloppement professionnel 15-16",French,N/A,2016-01-11,20000.00,20000.00,Contribution,"Promotion Program",
2015-2016,P4,"YXY Productions Inc.",Burnaby,"British Columbia",Canada,"No Men Beyond This Point",English,Comedy,2016-01-12,22500.00,22500.00,"Recoupable Advance","Marketing Program",
2015-2016,P4,"SongbirdSOS Productions Inc.",Ajax,Ontario,Canada,"Messenger (The)",English,Documentary,2016-01-12,20543.00,20543.00,"Recoupable Advance","Marketing Program",
2015-2016,P4,"Pacific Northwest Pictures Inc.",Vancouver,"British Columbia",Canada,"October Gale",English,Thriller,2016-01-13,141134.00,148091.00,"Recoupable Advance","Marketing Program","Amended contract signed  06-MAY-15"
2015-2016,P4,"Copperheart Entertainment Inc.",Toronto,Ontario,Canada,"Portfolio 2015-2016 Copperheart Entertainment Inc.",English,Comedy,2016-01-13,48978.00,90000.00,"Recoupable Advance","Development Program","Amended contract signed  13-JAN-16"
2015-2016,P4,"Copperheart Entertainment Inc.",Toronto,Ontario,Canada,"Portfolio 2015-2016 Copperheart Entertainment Inc.",English,Sci.fi./Fantasy/Tale,2016-01-13,90000.00,90000.00,"Recoupable Advance","Development Program","Amended contract signed  13-JAN-16"
2015-2016,P4,"V�rit� Films Inc.",Toronto,Ontario,Canada,"Portfolio 2015-2016 Verite Films Inc.",English,Comedy,2016-01-14,15000.00,15000.00,"Recoupable Advance","Development Program",
2015-2016,P4,"10x2y Inc.",Toronto,Ontario,Canada,"Portfolio 2015-2016 10x2y Inc.",English,"Historical Drama",2016-01-14,20000.00,20000.00,"Recoupable Advance","Development Program",
2015-2016,P4,"Productions Festives",Trois-Rivieres,Quebec,Canada,"Elle pis son char",French,Documentary,2016-01-14,1200.00,1200.00,Contribution,"International Marketing Program",
2015-2016,P4,"Raven Banner Releasing Inc.",Toronto,Ontario,Canada,"Date with Miss Fortune (A)",English,"Romantic Comedy",2016-01-15,50000.00,50000.00,"Recoupable Advance","Marketing Program",
2015-2016,P4,"10x2y Inc.",Toronto,Ontario,Canada,"Portfolio 2013-2014 10x2y Inc.",English,"Drama (Film)",2016-01-18,17085.00,75000.00,"Recoupable Advance","Development Program","Amended contract signed  14-NOV-13"
2015-2016,P4,"Zapruder Films Inc.",Toronto,Ontario,Canada,"Portfolio 2015-2016 Zapruder Films Inc.",English,"Historical Drama",2016-01-18,15000.00,15000.00,"Recoupable Advance","Development Program",
2015-2016,P4,"Wreckhouse Productions Inc.","St. John's",Newfoundland/Labrador,Canada,"Portfolio 2015-2016 Wreckhouse Productions Inc.",English,"Drama (Film)",2016-01-18,15000.00,15000.00,"Recoupable Advance","Development Program",
2015-2016,P4,"LGDT-3D INC",Montreal,Quebec,Canada,"Snowtime! (La Guerre des tuques 3D)",French,"Drama (Film)",2016-01-18,25000.00,25000.00,Contribution,"International Marketing Program",
2015-2016,P4,"Original Title One Productions Inc.",Vancouver,"British Columbia",Canada,"""Once There Was a Winter (Formerly """"Winter"""")""",English,Thriller,2016-01-18,150000.00,150000.00,Investment,"Production Program",
2015-2016,P4,"Documentary Organization of Canada",Toronto,Ontario,Canada,"Festival Concierge",English,N/A,2016-01-18,8000.00,8000.00,Contribution,"Promotion Program",
2015-2016,P4,"Atlantic Filmmakers Cooperative Limited",Halifax,"Nova Scotia",Canada,HIFF,English,N/A,2016-01-18,5000.00,5000.00,Contribution,"Promotion Program",
2015-2016,P4,"Balestra Productions Inc.",Ottawa,Ontario,Canada,"Portfolio 2015-2016 Balestra Productions Inc.",French,"Drama (Film)",2016-01-19,15000.00,15000.00,"Recoupable Advance","Development Program",
2015-2016,P4,"Momentum Pictures (Canada), Inc.",Toronto,Ontario,Canada,"Hit By Lightning",English,Comedy,2016-01-21,25419.00,55000.00,"Recoupable Advance","Marketing Program","Amended contract signed  09-DEC-14"
2015-2016,P4,"Manis Film Consultants Inc.",Toronto,Ontario,Canada,"Portfolio 2015-2016 Manis Film Consultants Inc.",English,Action/Adventure,2016-01-21,15000.00,30000.00,"Recoupable Advance","Development Program","Amended contract signed  21-JAN-16"
2015-2016,P4,"Manis Film Consultants Inc.",Toronto,Ontario,Canada,"Portfolio 2015-2016 Manis Film Consultants Inc.",English,"Drama (Film)",2016-01-21,30000.00,30000.00,"Recoupable Advance","Development Program","Amended contract signed  21-JAN-16"
2015-2016,P4,"9285-8463 Qu�bec Inc.",Montreal,Quebec,Canada,"Avant les rues",French,"Drama (Film)",2016-01-21,25000.00,25000.00,Contribution,"International Marketing Program",
2015-2016,P4,"Metropole Films Distribution",Montreal,Quebec,Canada,Autrui,French,"Drama (Film)",2016-01-22,50882.00,60000.00,"Recoupable Advance","Marketing Program","Amended contract signed  17-MAR-15"
2015-2016,P4,"Gestion Id�acom International Inc. (9085-7525 Qu�bec Inc.) ",Montreal,Quebec,Canada,"Pilotes - Les miracul�s du ciel ",French,Documentary,2016-01-26,14000.00,0.00,"Recoupable Advance",Mini-treaties,
2015-2016,P4,"6909060 Canada Inc. (d/b/a Prospector Films)",Montreal,Quebec,Canada,"Portfolio 2015-2016 6909060 Canada Inc.",English,Comedy,2016-01-27,15000.00,45000.00,"Recoupable Advance","Development Program","Amended contract signed  27-JAN-16"
2015-2016,P4,"6909060 Canada Inc. (d/b/a Prospector Films)",Montreal,Quebec,Canada,"Portfolio 2015-2016 6909060 Canada Inc.",English,"Drama (Film)",2016-01-27,45000.00,45000.00,"Recoupable Advance","Development Program","Amended contract signed  27-JAN-16"
2015-2016,P4,"9215-8534 Qu�bec Inc. (Parallaxes)",Saint-Pierre,Quebec,Canada,"Portfolio 2015-2016 9215-8534 Qu�bec Inc. (Parallaxes)",French,Sci.fi./Fantasy/Tale,2016-01-27,15000.00,15000.00,"Recoupable Advance","Development Program",
2015-2016,P4,"Productions Film Plein Coeur Inc.",Montreal,Quebec,Canada,"MES ENNEMIS",French,"Drama (Film)",2016-01-27,738.00,738.00,Contribution,"International Marketing Program",
2015-2016,P4,"Steady Films Inc.",Vancouver,"British Columbia",Canada,"Never Steady, Never Still",English,"Drama (Film)",2016-01-27,250000.00,250000.00,Investment,"Production Program",
2015-2016,P4,"9151-1766 Qu�bec Inc.",Montreal,Quebec,Canada,"Portfolio 2015-2016 9151-1766 Qu�bec Inc.",French,Comedy,2016-01-28,15000.00,15000.00,"Recoupable Advance","Development Program",
2015-2016,P4,"Caravane Films Productions",Chicoutimi,Quebec,Canada,"Festival, March�, Init. de Regard sur le court m�trage 2016",French,N/A,2016-01-28,62159.00,62159.00,Contribution,"Promotion Program",
2015-2016,P4,"6710875 Canada Inc. (faisant affaires sous Nish Media)",Gatineau,Quebec,Canada,"Portfolio 2015-2016 6710875 Canada inc.",French,"Romantic Comedy",2016-01-29,15000.00,15000.00,"Recoupable Advance","Development Program",
2015-2016,P4,"Productions cin�-sc�ne inc.",Quebec,Quebec,Canada,"Portfolio 2015-2016 Productions cin�-sc�ne inc.",French,"Romantic Comedy",2016-01-29,15000.00,15000.00,"Recoupable Advance","Development Program",
2015-2016,P4,"Northern Visions Independent Video & Film Association",Toronto,Ontario,Canada,"Images Festival",English,N/A,2016-01-29,22784.00,22784.00,Contribution,"Promotion Program",
2015-2016,P4,"Triptych Media Inc.",Toronto,Ontario,Canada,"Portfolio 2015-2016 Triptych Media Inc.",English,"Drama (Film)",2016-02-01,15000.00,15000.00,"Recoupable Advance","Development Program",
2015-2016,P4,"Mexican't Productions Inc.",Toronto,Ontario,Canada,Mexican't,English,Comedy,2016-02-01,371016.00,371016.00,Investment,"Production Program",
2015-2016,P4,"Lithium Studios Productions Inc.",Toronto,Ontario,Canada,"I Put A Hit On You",English,Comedy,2016-02-02,9472.00,9472.00,"Recoupable Advance","Marketing Program",
2015-2016,P4,"Sutram Pictures Inc.","Prospect Bay","Nova Scotia",Canada,"Portfolio 2015-2016 Sutram Pictures Inc.",English,Horror,2016-02-02,15000.00,15000.00,"Recoupable Advance","Development Program",
2015-2016,P4,"Item 7 Inc.",Montreal,Quebec,Canada,"Portfolio 2015-2016 Item 7 Inc.",English,"Drama (Film)",2016-02-04,15000.00,165000.00,"Recoupable Advance","Development Program","Amended contract signed  04-FEB-16"
2015-2016,P4,"Item 7 Inc.",Montreal,Quebec,Canada,"Portfolio 2015-2016 Item 7 Inc.",French,"Drama (Film)",2016-02-04,37500.00,165000.00,"Recoupable Advance","Development Program","Amended contract signed  04-FEB-16"
2015-2016,P4,"Item 7 Inc.",Montreal,Quebec,Canada,"Portfolio 2015-2016 Item 7 Inc.",French,"Historical Drama",2016-02-04,61000.00,165000.00,"Recoupable Advance","Development Program","Amended contract signed  04-FEB-16"
2015-2016,P4,"Item 7 Inc.",Montreal,Quebec,Canada,"Portfolio 2015-2016 Item 7 Inc.",French,Musical,2016-02-04,76000.00,165000.00,"Recoupable Advance","Development Program","Amended contract signed  04-FEB-16"
2015-2016,P4,"Item 7 Inc.",Montreal,Quebec,Canada,"Portfolio 2015-2016 Item 7 Inc.",English,Mystery/Crime/Police,2016-02-04,102000.00,165000.00,"Recoupable Advance","Development Program","Amended contract signed  04-FEB-16"
2015-2016,P4,"Item 7 Inc.",Montreal,Quebec,Canada,"Portfolio 2015-2016 Item 7 Inc.",English,Sci.fi./Fantasy/Tale,2016-02-04,165000.00,165000.00,"Recoupable Advance","Development Program","Amended contract signed  04-FEB-16"
2015-2016,P4,"Rhombus Media Inc.",Toronto,Ontario,Canada,"Portfolio 2015-2016 Rhombus Media Inc.",English,Action/Adventure,2016-02-04,28000.00,200000.00,"Recoupable Advance","Development Program","Amended contract signed  04-FEB-16"
2015-2016,P4,"Rhombus Media Inc.",Toronto,Ontario,Canada,"Portfolio 2015-2016 Rhombus Media Inc.",English,"Drama (Film)",2016-02-04,200000.00,200000.00,"Recoupable Advance","Development Program","Amended contract signed  04-FEB-16"
2015-2016,P4,"First Love Films Inc.",Toronto,Ontario,Canada,"Portfolio 2015-2016 First Love Films Inc.",English,Horror,2016-02-04,15000.00,15000.00,"Recoupable Advance","Development Program",
2015-2016,P4,"Motion 58 Entertainment Inc.",Vancouver,"British Columbia",Canada,"Portfolio 2015-2016 Motion 58 Entertainment Inc.",English,Comedy,2016-02-04,15000.00,15000.00,"Recoupable Advance","Development Program",
2015-2016,P4,"Industry Pictures Inc.",Toronto,Ontario,Canada,"Portfolio 2015-2016 Industry Pictures Inc.",English,"Drama (Film)",2016-02-04,15000.00,15000.00,"Recoupable Advance","Development Program",
2015-2016,P4,"Willis Sweete Productions Inc.",Toronto,Ontario,Canada,"Portfolio 2015-2016 Willis Sweete Productions",English,Thriller,2016-02-04,15000.00,15000.00,"Recoupable Advance","Development Program",
2015-2016,P4,"A Film Monkey Production Inc.",Toronto,Ontario,Canada,"Portfolio 2015-2016 A Film Monkey Production Inc.",English,Mystery/Crime/Police,2016-02-04,15000.00,15000.00,"Recoupable Advance","Development Program",
2015-2016,P4,"Fullum Films Inc.",Montreal,Quebec,Canada,"Portfolio 2015-2016 Fullum Films Inc.",French,"Historical Drama",2016-02-04,15000.00,15000.00,"Recoupable Advance","Development Program",
2015-2016,P4,"Viddywell Films Inc.",Toronto,Ontario,Canada,"Portfolio 2015-2016 Viddywell Films Inc.",English,"Drama (Film)",2016-02-04,15000.00,15000.00,"Recoupable Advance","Development Program",
2015-2016,P4,"Aiken Heart Films Inc.",Toronto,Ontario,Canada,"Portfolio 2015-2016 Aiken Heart Films Inc.",English,"Drama (Film)",2016-02-04,15000.00,15000.00,"Recoupable Advance","Development Program",
2015-2016,P4,"Clique Pictures Inc.",Toronto,Ontario,Canada,"Portfolio 2015-2016 Clique Pictures Inc.",English,Thriller,2016-02-04,15000.00,15000.00,"Recoupable Advance","Development Program",
2015-2016,P4,"Tremendous Productions",Toronto,Ontario,Canada,"Portfolio 2015-2016 Tremendous Productions",English,"Drama (Film)",2016-02-04,15000.00,15000.00,"Recoupable Advance","Development Program",
2015-2016,P4,"Realm Productions & Advertising Inc.","St. John","New Brunswick",Canada,"Portfolio 2015-2016 Realm Productions & Advertising Inc.",English,Horror,2016-02-04,15000.00,15000.00,"Recoupable Advance","Development Program",
2015-2016,P4,"Goodbye Productions Inc.",Vancouver,"British Columbia",Canada,"Portfolio 2015-2016 Goodbye Productions Inc.",English,Horror,2016-02-04,15000.00,15000.00,"Recoupable Advance","Development Program",
2015-2016,P4,"Alyson Richards Productions Inc.",Hamilton,Ontario,Canada,"Portfolio 2015-2016 Alyson Richards Productions Inc.",English,Horror,2016-02-04,15000.00,15000.00,"Recoupable Advance","Development Program",
2015-2016,P4,"9086-6351 Qu�bec Inc. (Les films du passeur)","Saint-Paulin ",Quebec,Canada,"Oncle Bernard - L'anti-le�on d'�conomie",French,Documentary,2016-02-04,7500.00,7500.00,"Recoupable Advance","Marketing Program",
2015-2016,P4,"Hoggwild Films Inc.",Victoria,"British Columbia",Canada,"Portfolio 2015-2016 Hoggwild Films Inc.",English,Sci.fi./Fantasy/Tale,2016-02-04,15000.00,15000.00,"Recoupable Advance","Development Program",
2015-2016,P4,"Global Visions Festival Society ",Edmonton,Alberta,Canada,NORTHWESTFEST,English,N/A,2016-02-04,5000.00,5000.00,Contribution,"Promotion Program",
2015-2016,P4,"Hello Destroyer Productions Inc.",Vancouver,"British Columbia",Canada,Destroyer,English,"Drama (Film)",2016-02-05,365000.00,300000.00,Investment,"Production Program","Amended contract signed  27-MAR-15"
2015-2016,P4,"Devonshire Productions Inc.",Toronto,Ontario,Canada,"Portfolio 2015-2016 Devonshire Productions Inc.",English,Thriller,2016-02-05,15000.00,15000.00,"Recoupable Advance","Development Program",
2015-2016,P4,"Crawlspace Films, Inc.","St. John's",Newfoundland/Labrador,Canada,"Portfolio 2015-2016 Crawlspace Films, Inc.",English,Thriller,2016-02-05,15000.00,15000.00,"Recoupable Advance","Development Program",
2015-2016,P4,"Mia Film Inc.",Winnipeg,Manitoba,Canada,Mia,French,"Drama (Film)",2016-02-05,127500.00,127500.00,Contribution,"Micro-Budget Production Program",
2015-2016,P4,"Women In Film & Television Vancouver Society",Vancouver,"British Columbia",Canada,"Vancouver International Women in Film Festival",English,N/A,2016-02-05,3500.00,3500.00,Contribution,"Promotion Program",
2015-2016,P4,"P�riph�ria Productions Inc.",Montreal,Quebec,Canada,"Portfolio 2015-2016 P�riph�ria Films Inc",French,Comedy,2016-02-08,15000.00,15000.00,"Recoupable Advance","Development Program",
2015-2016,P4,"9324-3178 Qu�bec inc.",Montreal,Quebec,Canada,"Un jour mon prince...",French,"Romantic Comedy",2016-02-09,70000.00,70000.00,"Investment, Recoupable Advance",Mini-treaties,
2015-2016,P4,"9324-3178 Qu�bec inc.",Montreal,Quebec,Canada,"Un jour mon prince...",French,"Romantic Comedy",2016-02-09,165000.00,165000.00,"Investment, Recoupable Advance","Production Program",
2015-2016,P4,"Emotion Pictures Incorporated",Halifax,"Nova Scotia",Canada,"Portfolio 2015-2016 Emotion Pictures Incorporated",French,Action/Adventure,2016-02-10,15000.00,35000.00,"Recoupable Advance","Development Program","Amended contract signed  10-FEB-16"
2015-2016,P4,"Emotion Pictures Incorporated",Halifax,"Nova Scotia",Canada,"Portfolio 2015-2016 Emotion Pictures Incorporated",English,"Drama (Film)",2016-02-10,35000.00,35000.00,"Recoupable Advance","Development Program","Amended contract signed  10-FEB-16"
2015-2016,P4,"Mongrel Media Inc.",Toronto,Ontario,Canada,Uvanga,English,"Drama (Film)",2016-02-10,45637.00,57389.00,"Recoupable Advance","Marketing Program","Amended contract signed  20-AUG-14"
2015-2016,P4,"Mongrel Media Inc.",Toronto,Ontario,Canada,"Animal Project  (The)",English,"Drama (Film)",2016-02-10,21382.00,30938.00,"Recoupable Advance","Marketing Program","Amended contract signed  31-JUL-14"
2015-2016,P4,"Mongrel Media Inc.",Toronto,Ontario,Canada,Heartbeat,English,Comedy,2016-02-10,20567.00,20567.00,"Recoupable Advance","Marketing Program",
2015-2016,P4,"9204-8628 Quebec Inc.",Montreal,Quebec,Canada,"Boris sans B�atrice",French,"Drama (Film)",2016-02-10,18500.00,18500.00,Contribution,"International Marketing Program",
2015-2016,P4,"Films S�ville Inc. (Les) / Seville Pictures Inc.",Montreal,Quebec,Canada,Endorphine,French,"Drama (Film)",2016-02-10,1700.00,1700.00,Contribution,"International Marketing Program",
2015-2016,P4,"Storyline Fx Inc.",Winnipeg,Manitoba,Canada,"Freeze Frame Int'l Film Festival For Kids of All Ages",English,N/A,2016-02-10,9345.00,9345.00,Contribution,"Promotion Program",
2015-2016,P4,"On Screen Manitoba ",Winnipeg,Manitoba,Canada,"INPUT 2016 ",English,N/A,2016-02-10,25000.00,25000.00,Contribution,"Promotion Program",
2015-2016,P4,"Canadian Film in the Schools",Toronto,Ontario,Canada,"REEL CANADA and National Canadian Film Day (NCFD)",English,N/A,2016-02-10,100000.00,100000.00,Contribution,"Promotion Program",
2015-2016,P4,"9268-4000 Quebec Inc.",Montreal,Quebec,Canada,BOOST,English,"Drama (Film)",2016-02-11,490000.00,400000.00,Investment,"Production Program","Amended contract signed  15-JUN-15"
2015-2016,P4,"Films Christal, s.e.c.(Les), agissant par l'interm�diaire de son commandit�, Les Films Christal Inc",Montreal,Quebec,Canada,Endorphine,French,"Drama (Film)",2016-02-11,84887.00,84887.00,"Recoupable Advance","Marketing Program",
2015-2016,P4,"9322-5019 Qu�bec Inc.",Montreal,Quebec,Canada,"Memory Is Our Homeland",English,Documentary,2016-02-12,127500.00,120000.00,Contribution,"Micro-Budget Production Program","Amended contract signed  24-NOV-15"
2015-2016,P4,"9269-0791 Qu�bec Inc.",Montreal,Quebec,Canada,"Montr�al la blanche",French,"Drama (Film)",2016-02-12,2700.00,2700.00,Contribution,"International Marketing Program",
2015-2016,P4,"Femmes du cinema, de la television et des m�dias num�riques",Montreal,Quebec,Canada,"The PEI Screenwriters' Bootcamp ",English,N/A,2016-02-12,15000.00,15000.00,Contribution,"Promotion Program",
2015-2016,P4,"9289-7081 Qu�bec inc.",Quebec,Quebec,Canada,"Feuilles Mortes",French,Sci.fi./Fantasy/Tale,2016-02-15,127500.00,120000.00,Contribution,"Micro-Budget Production Program","Amended contract signed  16-SEP-15"
2015-2016,P4,"PUNK Films Inc.",Toronto,Ontario,Canada,"He Hated Pigeons",English,"Drama (Film)",2016-02-15,10000.00,10000.00,Contribution,"International Marketing Program",
2015-2016,P4,"Jane Losa Films Inc.",Montreal,Quebec,Canada,"Portfolio 2015-2016 Jane Losa Films Inc.",French,"Drama (Film)",2016-02-17,15000.00,15000.00,"Recoupable Advance","Development Program",
2015-2016,P4,"Funfilm Distribution Inc.",Montreal,Quebec,Canada,"Rang du lion (Le)",French,"Drama (Film)",2016-02-17,20000.00,20000.00,"Recoupable Advance","Marketing Program",
2015-2016,P4,"Nice Is Cool Films Inc.",Toronto,Ontario,Canada,"Her Friend Adam",English,"Drama (Film)",2016-02-17,961.00,961.00,Contribution,"International Marketing Program",
2015-2016,P4,"On Screen Manitoba ",Winnipeg,Manitoba,Canada,"All Access 2016",English,N/A,2016-02-17,17000.00,17000.00,Contribution,"Promotion Program",
2015-2016,P4,"Jean Of The Joneses Productions Inc.",Mississauga,Ontario,Canada,"Jean of the Joneses",English,Comedy,2016-02-18,267200.00,220000.00,Investment,"Production Program","Amended contract signed  28-OCT-15"
2015-2016,P4,"Jean Of The Joneses Productions Inc.",Mississauga,Ontario,Canada,"Jean of the Joneses",English,Comedy,2016-02-18,9771.00,9771.00,Contribution,"International Marketing Program",
2015-2016,P4,"Sohkeciwan Productions Ltd.","North Vancouver","British Columbia",Canada,"River of Silence",English,"Drama (Film)",2016-02-19,127500.00,120000.00,Contribution,"Micro-Budget Production Program","Amended contract signed  19-NOV-15"
2015-2016,P4,"2033161 Ontario Limited d.b.a. Films We Like",Toronto,Ontario,Canada,Altman,English,Documentary,2016-02-19,40003.00,55704.00,"Recoupable Advance","Marketing Program","Amended contract signed  22-AUG-14"
2015-2016,P4,"Elevation Pictures Corp.",Toronto,Ontario,Canada,Room,English,"Drama (Film)",2016-02-19,1875371.00,1518881.00,"Recoupable Advance","Marketing Program","Amended contract signed  24-NOV-15"
2015-2016,P4,"Productions Nova M�dia Inc.",Rouyn-Noranda,Quebec,Canada,"Arctique :  que nous dit la Terre ?  La science au service du P�le Nord",French,Documentary,2016-02-19,8000.00,0.00,"Recoupable Advance",Mini-treaties,
2015-2016,P4,"Les Productions du Cerf-Volant Inc.",Montreal,Quebec,Canada,"Portfolio 2015-2016 Les Productions du Cerf-Volant Inc.",French,"Drama (Film)",2016-02-19,15000.00,15000.00,"Recoupable Advance","Development Program",
2015-2016,P4,"Pacific Northwest Pictures Inc.",Vancouver,"British Columbia",Canada,"Mountain Men",English,Comedy,2016-02-22,78178.00,82084.00,"Recoupable Advance","Marketing Program","Amended contract signed  16-JAN-15"
2015-2016,P4,"Entertainment One Films Canada Inc.",Toronto,Ontario,Canada,Remember,English,"Drama (Film)",2016-02-23,627181.00,627181.00,"Recoupable Advance","Marketing Program",
2015-2016,P4,"9323-2007 Qu�bec Inc.",Montreal,Quebec,Canada,"Une fille comme moi",French,"Drama (Film)",2016-02-23,127500.00,127500.00,Contribution,"Micro-Budget Production Program",
2015-2016,P4,"Alberta Media Production Industries  Association (AMPIA)",Edmonton,Alberta,Canada,"AMPIA Professional Development Activities",English,N/A,2016-02-23,20000.00,20000.00,Contribution,"Promotion Program",
2015-2016,P4,"Festival du film de l'Outaouais",Montreal,Quebec,Canada,"Festival du film de l'Outaouais 2016 (18e) incluant l'initiative: Talent Canadiens 2016",French,N/A,2016-02-25,26069.00,21069.00,Contribution,"Promotion Program","Amended contract signed  18-SEP-15"
2015-2016,P4,"A71 Entertainment Inc.",Toronto,Ontario,Canada,"Across The Line",English,"Drama (Film)",2016-02-25,95250.00,95250.00,"Recoupable Advance","Marketing Program",
2015-2016,P4,"Pacific Northwest Pictures Inc.",Vancouver,"British Columbia",Canada,"Legend of Barney Thomson (The)",English,Comedy,2016-02-25,130129.00,130129.00,"Recoupable Advance","Marketing Program",
2015-2016,P4,"A71 Entertainment Inc.",Toronto,Ontario,Canada,Numb,English,Thriller,2016-02-25,72889.00,72889.00,"Recoupable Advance","Marketing Program",
2015-2016,P4,"Terrifying Movie Inc.",Halifax,"Nova Scotia",Canada,"Halloween Party",English,Horror,2016-02-25,450000.00,450000.00,Investment,"Production Program",
2015-2016,P4,"9316-5058 Qu�bec inc.",Montreal,Quebec,Canada,"Juste la fin du monde",French,"Drama (Film)",2016-02-26,200000.00,200000.00,"Recoupable Advance",Mini-treaties,
2015-2016,P4,"9316-5058 Qu�bec inc.",Montreal,Quebec,Canada,"Juste la fin du monde",French,"Drama (Film)",2016-02-26,1050000.00,1050000.00,"Recoupable Advance","Production Program",
2015-2016,P4,"Breadwinner Canada Inc.",Toronto,Ontario,Canada,"Breadwinner (The)",English,"Drama (Film)",2016-02-26,1650000.00,1650000.00,Investment,"Production Program",
2015-2016,P4,"9313-4302 Qu�bec inc.",Quebec,Quebec,Canada,Squat,French,"Drama (Film)",2016-02-26,325000.00,325000.00,Investment,"Production Program",
2015-2016,P4,"Max Films M�dia Inc.",Montreal,Quebec,Canada,"Portfolio 2015-2016 Max Films M�dia Inc.",French,"Drama (Film)",2016-02-27,15000.00,15000.00,"Recoupable Advance","Development Program",
2015-2016,P4,"Metropole Films Distribution",Montreal,Quebec,Canada,Brooklyn,English,"Drama (Film)",2016-02-29,479172.00,299904.00,"Recoupable Advance","Marketing Program","Amended contract signed  14-DEC-15"
2015-2016,P4,"Max Films Inc.",Montreal,Quebec,Canada,"Portfolio 2015-2016 Max Films Inc.",English,Comedy,2016-02-29,20200.00,130000.00,"Recoupable Advance","Development Program","Amended contract signed  29-FEB-16"
2015-2016,P4,"Max Films Inc.",Montreal,Quebec,Canada,"Portfolio 2015-2016 Max Films Inc.",English,"Drama (Film)",2016-02-29,89700.00,130000.00,"Recoupable Advance","Development Program","Amended contract signed  29-FEB-16"
2015-2016,P4,"Max Films Inc.",Montreal,Quebec,Canada,"Portfolio 2015-2016 Max Films Inc.",French,"Historical Drama",2016-02-29,130000.00,130000.00,"Recoupable Advance","Development Program","Amended contract signed  29-FEB-16"
2015-2016,P4,"9322-3394 Qu�bec Inc.",Beaconsfield,Quebec,Canada,A,English,"Drama (Film)",2016-02-29,127500.00,120000.00,Contribution,"Micro-Budget Production Program","Amended contract signed  30-SEP-15"
2015-2016,P4,"Forum Films (Coeur) Inc.",Montreal,Quebec,Canada,"C'est le coeur qui meurt en dernier",French,"Drama (Film)",2016-02-29,1450000.00,1450000.00,Investment,"Production Program",
2015-2016,P4,"KRH film Inc.",Montreal,Quebec,Canada,Touched,English,Mystery/Crime/Police,2016-02-29,300000.00,300000.00,"Investment, Recoupable Advance","Production Program",
2015-2016,P4,"Mission Y�ti inc.",St-Augustin-Desmaure,Quebec,Canada,"Mission Y�ti",French,Action/Adventure,2016-03-02,1020000.00,950000.00,"Investment, Recoupable Advance","Production Program","Amended contract signed  03-SEP-15"
2015-2016,P4,"Topsail Development Limited",Halifax,"Nova Scotia",Canada,"Portfolio 2014-2015 Topsail Development Limited",English,Comedy,2016-03-02,16800.00,19600.00,"Recoupable Advance","Development Program","Amended contract signed  07-JAN-15"
2015-2016,P4,"Northwood Productions Inc.",Toronto,Ontario,Canada,"Grizzlies (The)",English,"Drama (Film)",2016-03-02,500000.00,500000.00,"Recoupable Advance","Production Program",
2015-2016,P4,"Screen Siren Pictures Inc.",Vancouver,"British Columbia",Canada,"Indian Horse",English,"Drama (Film)",2016-03-02,240000.00,240000.00,"Recoupable Advance","Production Program",
2015-2016,P4,"Motel Pictures Inc.",Toronto,Ontario,Canada,"Other Half (The)",English,"Drama (Film)",2016-03-02,10000.00,10000.00,Contribution,"International Marketing Program",
2015-2016,P4,"Production Ville-Marie inc.",Montreal,Quebec,Canada,VILLE-MARIE,French,"Drama (Film)",2016-03-02,528.00,528.00,Contribution,"International Marketing Program",
2015-2016,P4,"Rock and Gold Productions Inc.",Regina,Saskatchewan,Canada,"Land of Rock and Gold (The)",English,"Drama (Film)",2016-03-03,127500.00,120000.00,Contribution,"Micro-Budget Production Program","Amended contract signed  04-DEC-15"
2015-2016,P4,"Cardinal Pictures Inc.",Toronto,Ontario,Canada,Cardinal,English,"Drama (Film)",2016-03-03,127500.00,120000.00,Contribution,"Micro-Budget Production Program","Amended contract signed  20-OCT-15"
2015-2016,P4,"Funfilm Distribution Inc.",Montreal,Quebec,Canada,"Avant les rues",French,"Drama (Film)",2016-03-03,30000.00,30000.00,"Recoupable Advance","Marketing Program",
2015-2016,P4,"Films Christal, s.e.c.(Les), agissant par l'interm�diaire de son commandit�, Les Films Christal Inc",Montreal,Quebec,Canada,"Chasse-Galerie, La l�gende",French,"Drama (Film)",2016-03-03,414577.00,414577.00,"Recoupable Advance","Marketing Program",
2015-2016,P4,"Films Christal, s.e.c.(Les), agissant par l'interm�diaire de son commandit�, Les Films Christal Inc",Montreal,Quebec,Canada,"Mauvaises herbes (Les)",French,Comedy,2016-03-03,170817.00,170817.00,"Recoupable Advance","Marketing Program",
2015-2016,P4,"Zone3-VI Inc.",Montreal,Quebec,Canada,"Go�t d'un pays (Le)",French,Documentary,2016-03-03,125000.00,125000.00,Investment,"Theatrical Documentary Program",
2015-2016,P4,"Mongrel Media Inc.",Toronto,Ontario,Canada,Brooklyn,English,"Drama (Film)",2016-03-04,2190000.00,1428000.00,"Recoupable Advance","Marketing Program","Amended contract signed  09-DEC-15"
2015-2016,P4,"Search Engine Films Inc.",Toronto,Ontario,Canada,"Coconut Hero",English,Comedy,2016-03-04,31969.00,31969.00,"Recoupable Advance","Marketing Program",
2015-2016,P4,"Beaver's Ridge Productions Inc.",Toronto,Ontario,Canada,"How To Plan An Orgy In A Small Town",English,Comedy,2016-03-04,5000.00,5000.00,Contribution,"International Marketing Program",
2015-2016,P4,"New Real Films Inc.",Toronto,Ontario,Canada,"Born To Be Blue at SXSW",English,"Drama (Film)",2016-03-04,5000.00,5000.00,Contribution,"International Marketing Program",
2015-2016,P4,"Grant Street Productions Ltd.",Vancouver,"British Columbia",Canada,"Corporation II (The)",English,Documentary,2016-03-04,400000.00,400000.00,Investment,"Theatrical Documentary Program",
2015-2016,P4,"Winnipeg Film Group Inc.",Winnipeg,Manitoba,Canada,"Gimme Some Truth Documentary Festival",English,N/A,2016-03-04,3500.00,3500.00,Contribution,"Promotion Program",
2015-2016,P4,"The Death and Life of John F. Donovan Inc.",Montreal,Quebec,Canada,"Death and Life of John F. Donovan (The)",English,"Drama (Film)",2016-03-07,794399.00,794399.00,"Recoupable Advance","Production Program",
2015-2016,P4,"Elevation Pictures Corp.",Toronto,Ontario,Canada,Regression,English,Thriller,2016-03-08,195593.00,195593.00,"Recoupable Advance","Marketing Program",
2015-2016,P4,"Productions Caramel Film Inc.",Montreal,Quebec,Canada,"Gut Instinct",English,Mystery/Crime/Police,2016-03-08,126028.00,126028.00,"Recoupable Advance","Production Program",
2015-2016,P4,"9335-2631 Qu�bec Inc.",Montreal,Quebec,Canada,D�rive,French,"Drama (Film)",2016-03-08,400000.00,400000.00,Investment,"Production Program",
2015-2016,P4,"Forlorn Hope Productions Inc.",Vancouver,"British Columbia",Canada,Juggernaut,English,Mystery/Crime/Police,2016-03-08,250000.00,250000.00,Investment,"Production Program",
2015-2016,P4,"Input Calgary 2016 Society",Calgary,Alberta,Canada,"FCTMN 2015-2016",French,N/A,2016-03-08,15000.00,15000.00,Contribution,"Promotion Program",
2015-2016,P4,"Canadian Film in the Schools",Toronto,Ontario,Canada,"REEL CANADA: Canadian Film in the Schools and the National Canadian Film Day",English,N/A,2016-03-09,149113.00,129113.00,Contribution,"Promotion Program","Amended contract signed  15-JUL-15"
2015-2016,P4,"Mongrel Media Inc.",Toronto,Ontario,Canada,"Every Thing Will Be Fine",English,"Drama (Film)",2016-03-09,46613.00,46613.00,"Recoupable Advance","Marketing Program",
2015-2016,P4,"Manifold Pictures Inc.",Calgary,Alberta,Canada,"Northlander (The)",English,Sci.fi./Fantasy/Tale,2016-03-10,127500.00,120000.00,Contribution,"Micro-Budget Production Program","Amended contract signed  08-SEP-15"
2015-2016,P4,"The Film Farm Inc.",Toronto,Ontario,Canada,"Elena's Serenade",English,Sci.fi./Fantasy/Tale,2016-03-10,59113.00,80800.00,"Recoupable Advance","Development Program","Amended contract signed  25-JAN-11"
2015-2016,P4,"Entertainment One Films Canada Inc.",Toronto,Ontario,Canada,Life,English,"Drama (Film)",2016-03-10,87655.00,87655.00,"Recoupable Advance","Marketing Program",
2015-2016,P4,"Synopsis Films Inc.",Montreal,Quebec,Canada,"�a sent la coupe",French,"Drama (Film)",2016-03-10,1400000.00,1400000.00,"Investment, Recoupable Advance","Production Program",
2015-2016,P4,"The Space Between Productions Inc.",Oakville,Ontario,Canada,"Space Between (The)",English,Comedy,2016-03-11,127500.00,120000.00,Contribution,"Micro-Budget Production Program","Amended contract signed  09-JUL-15"
2015-2016,P4,"Play Your Gender Inc.",Dartmouth,"Nova Scotia",Canada,"Play Your Gender",English,Documentary,2016-03-11,127500.00,120000.00,Contribution,"Micro-Budget Production Program","Amended contract signed  30-SEP-15"
2015-2016,P4,"Mongrel Media Inc.",Toronto,Ontario,Canada,Aloft,English,"Drama (Film)",2016-03-11,124500.00,124500.00,"Recoupable Advance","Marketing Program",
2015-2016,P4,"Serendipity Point Films Inc.",Toronto,Ontario,Canada,"Portfolio 2015-2016 Serendipity Point Films Inc. - 2",English,"Drama (Film)",2016-03-11,83194.00,83194.00,"Recoupable Advance","Development Program",
2015-2016,P4,"Henchmen Productions Inc.",Burnaby,"British Columbia",Canada,Henchmen,English,Comedy,2016-03-11,3000000.00,3000000.00,Investment,"Production Program",
2015-2016,P4,"FilmLoft Media Inc.",Aurora,Ontario,Canada,"Stand Up Man (The)",English,Comedy,2016-03-14,127500.00,120000.00,Contribution,"Micro-Budget Production Program","Amended contract signed  01-OCT-15"
2015-2016,P4,"Grassfire Films Inc.","New Waterford","Nova Scotia",Canada,Werewolf,English,"Drama (Film)",2016-03-14,127500.00,120000.00,Contribution,"Micro-Budget Production Program","Amended contract signed  20-AUG-15"
2015-2016,P4,"Topsail Development Limited",Halifax,"Nova Scotia",Canada,"Portfolio 2015-2016 Topsail Development Limited",English,"Drama (Film)",2016-03-14,19600.00,19600.00,"Recoupable Advance","Development Program",
2015-2016,P4,"Entertainment One Films Canada Inc.",Toronto,Ontario,Canada,"Born To Be Blue",English,"Historical Drama",2016-03-14,236250.00,236250.00,"Recoupable Advance","Marketing Program",
2015-2016,P4,"TA3 Inc.",Montreal,Quebec,Canada,"TRIP A TROIS",French,Comedy,2016-03-14,1350000.00,1350000.00,Investment,"Production Program",
2015-2016,P4,"Bougon Inc",Montreal,Quebec,Canada,"Votez Bougon",French,Comedy,2016-03-15,2050000.00,2050000.00,"Recoupable Advance","Production Program",
2015-2016,P4,"Montefiore Films Inc.",Sudbury,Ontario,Canada,"Portfolio 2015-2016 Montefiore Films Inc.",English,"Drama (Film)",2016-03-15,15000.00,15000.00,"Recoupable Advance","Development Program",
2015-2016,P4,"9174-5018 Qu�bec inc.",Montreal,Quebec,Canada,"Paradis pour tous (Un)",French,Comedy,2016-03-16,10000.00,10000.00,"Recoupable Advance","Marketing Program",
2015-2016,P4,"Anthropocene Films Inc.",Toronto,Ontario,Canada,Anthropocene,English,Documentary,2016-03-16,400000.00,400000.00,Investment,"Theatrical Documentary Program",
2015-2016,P4,"Productions Item 7 - II Inc.",Montreal,Quebec,Canada,"Eye on Juliet (aka Virgin 2.0)",English,"Drama (Film)",2016-03-17,2400000.00,2400000.00,"Recoupable Advance","Production Program",
2015-2016,P4,"Entertainment One Films Canada Inc.",Toronto,Ontario,Canada,"Goon: Last of the Enforcers",English,Comedy,2016-03-17,2277788.00,2277788.00,"Recoupable Advance","Marketing Program",
2015-2016,P4,"Productions BCBC2 Inc.",Outremont,Quebec,Canada,"Bon Cop Bad Cop 2",English,Comedy,2016-03-17,436128.00,436128.00,"Recoupable Advance","Production Program",
2015-2016,P4,"D Films Corporation",Toronto,Ontario,Canada,"Scarehouse (The)",English,Horror,2016-03-18,35498.00,62077.00,"Recoupable Advance","Marketing Program","Amended contract signed  14-AUG-14"
2015-2016,P4,"Item 7 Inc.",Montreal,Quebec,Canada,"Eye on Juliet (aka Virgin 2.0)",English,"Drama (Film)",2016-03-18,0.00,150000.00,"Recoupable Advance","Production Program","Amended contract signed  17-APR-15"
2015-2016,P4,"Jill and Jackfish Productions Inc.",Yellowknife,"North West Territories",Canada,"Sun At Midnight (The)",English,Action/Adventure,2016-03-18,127500.00,120000.00,Contribution,"Micro-Budget Production Program","Amended contract signed  23-SEP-15"
2015-2016,P4,"Foundry Films Inc.",Toronto,Ontario,Canada,"Portfolio 2015-2016 Foundry Films Inc.",English,"Drama (Film)",2016-03-18,24000.00,24000.00,"Recoupable Advance","Development Program",
2015-2016,P4,"Jonathan Joffe Pictures Ltd.",Calgary,Alberta,Canada,"Portfolio 2015-2016 Jonathan Joffe Pictures Ltd.",English,Sci.fi./Fantasy/Tale,2016-03-18,15000.00,15000.00,"Recoupable Advance","Development Program",
2015-2016,P4,"MiiTwin Films Ltd.",Vancouver,"British Columbia",Canada,"Hanging Tree (The)",English,Thriller,2016-03-18,127500.00,127500.00,Contribution,"Micro-Budget Production Program",
2015-2016,P4,"Fathom Media Inc.",Toronto,Ontario,Canada,"My Enemy, My Brother",English,Documentary,2016-03-18,33405.00,33405.00,Investment,"Theatrical Documentary Program",
2015-2016,P4,"Femmes du cinema, de la television et des m�dias num�riques",Montreal,Quebec,Canada,"FAVA Fest",English,N/A,2016-03-18,2500.00,2500.00,Contribution,"Promotion Program",
2015-2016,P4,"Medium Density Fibreboard Films Inc.",Toronto,Ontario,Canada,"How Heavy This Hammer",English,"Drama (Film)",2016-03-21,13468.00,13468.00,Contribution,"International Marketing Program",
2015-2016,P4,"Eyesteelfilm Distribution Inc.",Montreal,Quebec,Canada,"I Am The Blues",English,Documentary,2016-03-21,5000.00,5000.00,Contribution,"International Marketing Program",
2015-2016,P4,"Films S�ville Inc. (Les) / Seville Pictures Inc.",Montreal,Quebec,Canada,"Ego trip (anciennement Perdi an Ayiti)",French,Comedy,2016-03-22,509148.00,516806.00,"Recoupable Advance","Marketing Program","Amended contract signed  08-OCT-15"
2015-2016,P4,"Entertainment One Films Canada Inc.",Toronto,Ontario,Canada,Remember,English,"Drama (Film)",2016-03-22,668661.00,627181.00,"Recoupable Advance","Marketing Program","Amended contract signed  23-FEB-16"
2015-2016,P4,"9337-3868 Quebec Inc.",Montreal,Quebec,Canada,"Ville Neuve",French,"Drama (Film)",2016-03-22,300000.00,300000.00,Investment,"Production Program",
2015-2016,P4,"PCF Hibou le Film Inc.  ",Montreal,Quebec,Canada,Hibou,French,Comedy,2016-03-22,250000.00,250000.00,"Investment, Recoupable Advance","Production Program",
2015-2016,P4,"Hot Docs",Toronto,Ontario,Canada,"Hot Docs 2015-2016 Activities",English,N/A,2016-03-23,350000.00,300000.00,Contribution,"Promotion Program","Amended contract signed  02-JUL-15"
2015-2016,P4,"Fondation Qu�bec cin�ma",Montreal,Quebec,Canada,"GALA DU CIN�MA QU�B�COIS 2016 (18e) incluant les initiatives de promotion des talents qu�b�cois",French,N/A,2016-03-23,197031.00,117031.00,Contribution,"Promotion Program","Amended contract signed  08-JUL-15"
2015-2016,P4,"2445881 Ontario Inc.",Toronto,Ontario,Canada,"Gordon Pinsent Documentary (The)",English,Documentary,2016-03-23,75000.00,75000.00,"Investment, Recoupable Advance","Theatrical Documentary Program",
2015-2016,P4,"Attraction Images inc.",Montreal,Quebec,Canada,"Pieds nus dans l'aube",French,"Drama (Film)",2016-03-23,1600000.00,1600000.00,"Investment, Recoupable Advance","Production Program",
2015-2016,P4,"Black Code Media Inc.",Toronto,Ontario,Canada,"Black Code",English,Documentary,2016-03-24,217500.00,187500.00,Investment,"Theatrical Documentary Program","Amended contract signed  25-MAR-14"
2015-2016,P4,"Incursion Productions Inc.",Vancouver,"British Columbia",Canada,Incursion,English,Thriller,2016-03-24,300000.00,300000.00,Investment,"Production Program",
2015-2016,P4,"9571116 Canada Inc.",Montreal,Quebec,Canada,RADIUS,English,Mystery/Crime/Police,2016-03-24,500000.00,500000.00,Investment,"Production Program",
2015-2016,P4,"Les Films Compass Inc",Montreal,Quebec,Canada,Venus,English,Comedy,2016-03-24,300000.00,300000.00,"Investment, Recoupable Advance","Production Program",
2015-2016,P4,"FIRST WEEKEND CLUB","North Vancouver","British Columbia",Canada,"FWC French Canadian Film & Talent Promotion",English,N/A,2016-03-24,20000.00,20000.00,Contribution,"Promotion Program",
2015-2016,P4,"Small Shack Productions Inc.","St. John's",Newfoundland/Labrador,Canada,Maudie,English,"Drama (Film)",2016-03-29,1750000.00,1650000.00,Investment,"Production Program","Amended contract signed  22-SEP-15"
2015-2016,P4,"White Pine Pictures Inc.",Toronto,Ontario,Canada,"Painted Land: In Search of the Group of Seven",English,Documentary,2016-03-29,32504.00,32504.00,"Recoupable Advance","Marketing Program",
2015-2016,P4,"Mongrel Media Inc.",Toronto,Ontario,Canada,"Forbidden Room (The)",English,"Drama (Film)",2016-03-29,50325.00,50325.00,"Recoupable Advance","Marketing Program",
2015-2016,P4,"Films S�ville Inc. (Les) / Seville Pictures Inc.",Montreal,Quebec,Canada,Race,English,"Drama (Film)",2016-03-29,600000.00,600000.00,"Recoupable Advance","Marketing Program",
2015-2016,P4,"Medium Density Fibreboard Films Inc.",Toronto,Ontario,Canada,"Tales of Two Who Dreamt",English,"Drama (Film)",2016-03-29,8119.00,8119.00,Contribution,"International Marketing Program",
2015-2016,P4,"Drax (Canada) Productions Inc.",Burnaby,"British Columbia",Canada,"9th Life of Louis Drax (The) ",English,"Drama (Film)",2016-03-29,750000.00,750000.00,Investment,"Production Program",
2015-2016,P4,"WIFT-AT Women in Film and Television Inc. ",Halifax,"Nova Scotia",Canada,"Women Making Waves",English,N/A,2016-03-29,2500.00,2500.00,Contribution,"Promotion Program",
2015-2016,P4,"Canadian Filmmakers Festival",Toronto,Ontario,Canada,"Canadian Film Fest",English,N/A,2016-03-29,5000.00,5000.00,Contribution,"Promotion Program",
2015-2016,P4,"Canadian Film Centre",Toronto,Ontario,Canada,"2016 CFC Annual Gala & Auction",English,N/A,2016-03-29,5000.00,5000.00,Contribution,"Promotion Program",
2015-2016,P4,"Momentum Pictures (Canada), Inc.",Toronto,Ontario,Canada,"My Awkward Sexual Adventure",English,"Romantic Comedy",2016-03-30,98288.00,49538.00,"Recoupable Advance","Marketing Program","Amended contract signed  24-JUL-12"
2015-2016,P4,"4544196 Canada Inc.","Ile Perrot",Quebec,Canada,WINNIE,English,"Historical Drama",2016-03-30,990143.00,1000000.00,"Recoupable Advance","Production Program","Amended contract signed  28-MAR-11"
2015-2016,P4,"White Pine Pictures Inc.",Toronto,Ontario,Canada,"Guantanamo's Child: Omar Khadr",English,Documentary,2016-03-30,37500.00,37500.00,"Recoupable Advance","Marketing Program",
2015-2016,P4,"Room Productions Inc.",Toronto,Ontario,Canada,Room,English,"Drama (Film)",2016-03-30,16684.00,16684.00,Contribution,"International Marketing Program",
